Workbook

Sheet Datos Asegurado
A2: Cotización | H2: Integrantes adicionales a cotizar
A4: 1. Ingrese los datos del asegurado | K4: Fecha de Nacimiento
H5: Número | I5: Relación | J5: Género | K5: Día | L5: Mes | M5: Año | N5: Edad
B6: Fecha Cotización: | C6: =TODAY() -> 2024-06-28 | H6: 1 | I6: Conyuge | J6: Femenino | K6: 10 | L6: 06 | M6: 2000 | N6: 24
B7: Nombre del titular: | C7: JUAN VIDAL | H7: 2 | I7: Hij@ | J7: Masculino | K7: 10 | L7: 06 | M7: 2015 | N7: 9
B8: Edad del titular: | C8: 74
B9: Género: | C9: Femenino
B11: Zona: | C11: Zona 1: CDMX, Area Metropolitana y Monterrey
B13: Número de integrantes adicionales a cotizar: | C13: 2
A16: 2. Datos del agente
B18: Nombre del agente:
B19: Agencia:
A22: 3. Datos de la póliza
B24: Tipo de cliente: | C24: Nuevo negocio
B26: Zona: | C26: ='Datos Asegurado'!E11 -> 0
B27: Suma asegurada (mxn): | C27: 1000000
D28: Maternidad
B29: Deducible (mxn): | C29: 15000 | D29: Titular: | E29: Si
D30: Conyuge: | E30: Si
B31: Coaseguro: | C31: 0.1 | E31: No
D32: Asistencia en el extranjero: | E32: Si
B33: Tope coaseguro: | C33: 30000 | E33: No
A35: 4. Costo Poliza | H35: 5. Compara
A37: Concepto | C37: Anual | D37: Semestral | E37: Trimestral | F37: Mensual | I37: Guardar para comparar | K37: Limpiar
B38: Prima del asegurado titular: | C38: =MasterBase!C10 -> 112902 | D38: =($C$38*1.045) -> 117982.59 | E38: =($C$38*1.075) -> 121369.65 | F38: =($C$38*1.09) -> 123063.18
B39: Prima cónyuge: | C39: =MasterBase!C24 -> 9619 | D39: =($C$39*1.045) -> 10051.855 | E39: =($C$39*1.075) -> 10340.425 | F39: =($C$39*1.09) -> 10484.71
B40: Prima hijo(s): | C40: =MasterBase!G24 -> 6075 | D40: =($C$40*1.045) -> 6348.375 | E40: =($C$40*1.075) -> 6530.625 | F40: =($C$40*1.09) -> 6621.75
B41: Dependientes económicos | C41: =MasterBase!K24 -> 0 | D41: =($C$41*1.045) -> 0 | E41: =($C$41*1.075) -> 0 | F41: =($C$41*1.09) -> 0
B42: Asistencia en el extranjero: | C42: =IF($E$32="Si",1632,0) -> 1632 | D42: =$C$42*1.045 -> 1705.44 | E42: =($C$42*1.075) -> 1754.4 | F42: =($C$42*1.09) -> 1778.88
B43: Total Prima: | C43: =SUM(C38:C42) -> 130228 | D43: =SUM(D38:D42) -> 136088.26 | E43: =SUM(E38:E42) -> 139995.1 | F43: =SUM(F38:F42) -> 141948.52
B44: Derecho de póliza: | C44: =Master!$U$3 -> 1600 | D44: =Master!$U$3 -> 1600 | E44: =Master!$U$3 -> 1600 | F44: =Master!$U$3 -> 1600
C45: 0 | D45: 0 | E45: 0 | F45: 0
B46: IVA (16%) | C46: =(C43+C44) * 16% -> 21092.48 | D46: =(D43+D44) * 16% -> 22030.1216 | E46: 22655.216 | F46: 22967.7632
B47: Costo total: | C47: =C43+C45+C44+C46 -> 152920.48 | D47: =D43+D45+D44+D46 -> 159718.3816 | E47: =E43+E45+E44+E46 -> 164250.316 | F47: =F43+F45+F44+F46 -> 166516.2832
B48: Primer Pago: | C48: =C47 -> 152920.48 | D48: =((D43/2)+D44)*1.16 -> 80787.1908 | E48: =(E43/4+E44)*1.16 -> 42454.579 | F48: =(F43/12+F44)*1.16 -> 15577.69027
B49: Pagos Subsecuentes: | D49: =(D43/2)*1.16 -> 78931.1908 | E49: =(E43/4)*1.16 -> 40598.579 | F49: =(F43/12)*1.16 -> 13721.69027

Sheet Instrucciones

Sheet Comparativo
B2: Datos de usuario
C4: Fecha Cotización: | D4: 2024-05-23
C5: Nombre del titular: | D5: JUAN VIDAL
C6: Edad del titular: | D6: 18
C7: Género: | D7: Masculino
C9: Zona: | D9: Zona 1: CDMX, Area Metropolitana y Monterrey
C11: Número de integrantes adicionales a cotizar: | D11: 2
B16: Datos de póliza | I16: Opción 1
J17: Datos de cotización
C18: Tipo de cliente: | D18: Nuevo negocio | J18: Concepto | L18: Anual | M18: Semestral | N18: Trimestral | O18: Mensual
K19: Prima del asegurado titular: | L19: 7709 | M19: 8055.905 | N19: 8287.175 | O19: 8402.81
C20: Zona: | D20: 0 | K20: Prima cónyuge: | L20: 7709 | M20: 8055.905 | N20: 8287.175 | O20: 8402.81
C21: Suma asegurada (mxn): | D21: 1000000 | K21: Prima hijo(s): | L21: 7709 | M21: 8055.905 | N21: 8287.175 | O21: 8402.81
E22: Maternidad | K22: Dependientes económicos | L22: 0 | M22: 0 | N22: 0 | O22: 0
C23: Deducible (mxn): | D23: 15000 | E23: Titular: | F23: No | K23: Asistencia en el extranjero: | L23: 1632 | M23: 1705.44 | N23: 1754.4 | O23: 1778.88
E24: Conyuge: | F24: No | K24: Total Prima: | L24: 24759 | M24: 25873.155 | N24: 26615.925 | O24: 26987.31
C25: Coaseguro: | D25: 0.1 | F25: No | K25: Derecho de póliza: | L25: 1500 | M25: 1500 | N25: 1500 | O25: 1500
E26: Asistencia en el extranjero: | F26: Si | L26: 0 | M26: 0 | N26: 0 | O26: 0
K27: IVA (16%) | L27: 4201.44 | M27: 4379.7048 | N27: 4498.548 | O27: 4557.9696
K28: Costo total: | L28: 30460.44 | M28: 31752.8598 | N28: 32614.473 | O28: 33045.2796
K29: Primer Pago: | L29: 30460.44 | M29: 16746.4299 | N29: 9458.61825 | O29: 4348.7733
K30: Pagos Subsecuentes: | M30: 15006.4299 | N30: 7718.61825 | O30: 2608.7733
B32: Datos de póliza
C34: Tipo de cliente: | D34: Nuevo negocio | J34: Concepto | L34: Anual | M34: Semestral | N34: Trimestral | O34: Mensual
K35: Prima del asegurado titular: | L35: 7709 | M35: 8055.905 | N35: 8287.175 | O35: 8402.81
C36: Zona: | D36: 0 | K36: Prima cónyuge: | L36: 7709 | M36: 8055.905 | N36: 8287.175 | O36: 8402.81
C37: Suma asegurada (mxn): | D37: 1000000 | K37: Prima hijo(s): | L37: 7709 | M37: 8055.905 | N37: 8287.175 | O37: 8402.81
E38: Maternidad | K38: Dependientes económicos | L38: 0 | M38: 0 | N38: 0 | O38: 0
C39: Deducible (mxn): | D39: 15000 | E39: Titular: | F39: No | K39: Asistencia en el extranjero: | L39: 1632 | M39: 1705.44 | N39: 1754.4 | O39: 1778.88
E40: Conyuge: | F40: No | K40: Total Prima: | L40: 24759 | M40: 25873.155 | N40: 26615.925 | O40: 26987.31
C41: Coaseguro: | D41: 0.1 | F41: No | K41: Derecho de póliza: | L41: 1500 | M41: 1500 | N41: 1500 | O41: 1500
E42: Asistencia en el extranjero: | F42: Si | L42: 0 | M42: 0 | N42: 0 | O42: 0
K43: IVA (16%) | L43: 4201.44 | M43: 4379.7048 | N43: 4498.548 | O43: 4557.9696
K44: Costo total: | L44: 30460.44 | M44: 31752.8598 | N44: 32614.473 | O44: 33045.2796
K45: Primer Pago: | L45: 30460.44 | M45: 16746.4299 | N45: 9458.61825 | O45: 4348.7733
K46: Pagos Subsecuentes: | M46: 15006.4299 | N46: 7718.61825 | O46: 2608.7733
B48: Datos de póliza
C50: Tipo de cliente: | D50: Nuevo negocio | J50: Concepto | L50: Anual | M50: Semestral | N50: Trimestral | O50: Mensual
K51: Prima del asegurado titular: | L51: 7709 | M51: 8055.905 | N51: 8287.175 | O51: 8402.81
C52: Zona: | D52: 0 | K52: Prima cónyuge: | L52: 7709 | M52: 8055.905 | N52: 8287.175 | O52: 8402.81
C53: Suma asegurada (mxn): | D53: 1000000 | K53: Prima hijo(s): | L53: 7709 | M53: 8055.905 | N53: 8287.175 | O53: 8402.81
E54: Maternidad | K54: Dependientes económicos | L54: 0 | M54: 0 | N54: 0 | O54: 0
C55: Deducible (mxn): | D55: 15000 | E55: Titular: | F55: No | K55: Asistencia en el extranjero: | L55: 1632 | M55: 1705.44 | N55: 1754.4 | O55: 1778.88
E56: Conyuge: | F56: No | K56: Total Prima: | L56: 24759 | M56: 25873.155 | N56: 26615.925 | O56: 26987.31
C57: Coaseguro: | D57: 0.1 | F57: No | K57: Derecho de póliza: | L57: 1500 | M57: 1500 | N57: 1500 | O57: 1500
E58: Asistencia en el extranjero: | F58: Si | L58: 0 | M58: 0 | N58: 0 | O58: 0
K59: IVA (16%) | L59: 4201.44 | M59: 4379.7048 | N59: 4498.548 | O59: 4557.9696
K60: Costo total: | L60: 30460.44 | M60: 31752.8598 | N60: 32614.473 | O60: 33045.2796
K61: Primer Pago: | L61: 30460.44 | M61: 16746.4299 | N61: 9458.61825 | O61: 4348.7733
K62: Pagos Subsecuentes: | M62: 15006.4299 | N62: 7718.61825 | O62: 2608.7733

Sheet Template PDF
B15: Cotización
B17: Datos Titular
B18: Nombre del titular: | C18: ='Datos Asegurado'!C7 -> JUAN VIDAL | D18: Nombre Agente: | E18: ='Datos Asegurado'!C18 -> 0
B19: Edad: | C19: ='Datos Asegurado'!C8 -> 74 | D19: Agencia: | E19: ='Datos Asegurado'!C19 -> 0
B20: Género: | C20: ='Datos Asegurado'!C9 -> Femenino | D20: ='Datos Asegurado'!B6 -> Fecha Cotización: | E20: ='Datos Asegurado'!C6 -> 2024-06-28
B21: Lugar de residencia: | C21: ='Datos Asegurado'!C11 -> Zona 1: CDMX, Area Metropolitana y Monterrey
B22: Número de integrantes cotizados: | C22: ='Datos Asegurado'!C13 -> 2
B24: Características de la Póliza
B25: Suma asegurada (mxn): | C25: ='Datos Asegurado'!C27 -> 1000000
B26: Deducible (mxn): | C26: ='Datos Asegurado'!C29 -> 15000
B27: Coaseguro | C27: ='Datos Asegurado'!C31 -> 0.1
B28: Tipo de cliente: | C28: ='Datos Asegurado'!C24:D24 -> Nuevo negocio
B29: ='Datos Asegurado'!D28 -> Maternidad | C29: ='Datos Asegurado'!D29 -> Titular: | D29: ='Datos Asegurado'!E29 -> Si
C30: ='Datos Asegurado'!D30 -> Conyuge: | D30: ='Datos Asegurado'!E30 -> Si
B32: Costo Poliza
B33: Concepto | C33: Anual | D33: Semestral | E33: Trimestral | F33: Mensual
B34: ='Datos Asegurado'!B38 -> Prima del asegurado titular: | C34: ='Datos Asegurado'!C38 -> 112902 | D34: ='Datos Asegurado'!D38 -> 117982.59 | E34: ='Datos Asegurado'!E38 -> 121369.65 | F34: ='Datos Asegurado'!F38 -> 123063.18
B35: ='Datos Asegurado'!B39 -> Prima cónyuge: | C35: ='Datos Asegurado'!C39 -> 9619 | D35: ='Datos Asegurado'!D39 -> 10051.855 | E35: ='Datos Asegurado'!E39 -> 10340.425 | F35: ='Datos Asegurado'!F39 -> 10484.71
B36: ='Datos Asegurado'!B40 -> Prima hijo(s): | C36: ='Datos Asegurado'!C40 -> 6075 | D36: ='Datos Asegurado'!D40 -> 6348.375 | E36: ='Datos Asegurado'!E40 -> 6530.625 | F36: ='Datos Asegurado'!F40 -> 6621.75
B37: ='Datos Asegurado'!B41 -> Dependientes económicos | C37: ='Datos Asegurado'!C41 -> 0 | D37: ='Datos Asegurado'!D41 -> 0 | E37: ='Datos Asegurado'!E41 -> 0 | F37: ='Datos Asegurado'!F41 -> 0
B38: ='Datos Asegurado'!B42 -> Asistencia en el extranjero: | C38: ='Datos Asegurado'!C42 -> 1632 | D38: ='Datos Asegurado'!D42 -> 1705.44 | E38: ='Datos Asegurado'!E42 -> 1754.4 | F38: ='Datos Asegurado'!F42 -> 1778.88
B39: ='Datos Asegurado'!B43 -> Total Prima: | C39: ='Datos Asegurado'!C43 -> 130228 | D39: ='Datos Asegurado'!D43 -> 136088.26 | E39: ='Datos Asegurado'!E43 -> 139995.1 | F39: ='Datos Asegurado'!F43 -> 141948.52
B40: ='Datos Asegurado'!B44 -> Derecho de póliza: | C40: ='Datos Asegurado'!C44 -> 1600 | D40: ='Datos Asegurado'!D44 -> 1600 | E40: ='Datos Asegurado'!E44 -> 1600 | F40: ='Datos Asegurado'!F44 -> 1600
B41: ='Datos Asegurado'!B45 -> 0 | C41: ='Datos Asegurado'!C45 -> 0 | D41: ='Datos Asegurado'!D45 -> 0 | E41: ='Datos Asegurado'!E45 -> 0 | F41: ='Datos Asegurado'!F45 -> 0
B42: ='Datos Asegurado'!B46 -> IVA (16%) | C42: ='Datos Asegurado'!C46 -> 21092.48 | D42: ='Datos Asegurado'!D46 -> 22030.1216 | E42: ='Datos Asegurado'!E46 -> 22655.216 | F42: ='Datos Asegurado'!F46 -> 22967.7632
B43: ='Datos Asegurado'!B47 -> Costo total: | C43: ='Datos Asegurado'!C47 -> 152920.48 | D43: ='Datos Asegurado'!D47 -> 159718.3816 | E43: ='Datos Asegurado'!E47 -> 164250.316 | F43: ='Datos Asegurado'!F47 -> 166516.2832
B44: ='Datos Asegurado'!B48 -> Primer Pago: | C44: ='Datos Asegurado'!C48 -> 152920.48 | D44: ='Datos Asegurado'!D48 -> 80787.1908 | E44: ='Datos Asegurado'!E48 -> 42454.579 | F44: ='Datos Asegurado'!F48 -> 15577.69027
B45: ='Datos Asegurado'!B49 -> Pagos Subsecuentes: | C45: ='Datos Asegurado'!C49 -> 0 | D45: ='Datos Asegurado'!D49 -> 78931.1908 | E45: ='Datos Asegurado'!E49 -> 40598.579 | F45: ='Datos Asegurado'!F49 -> 13721.69027
B51: Tarifas válidas al 30 de junio 2025
B53: Las pólizas contratadas cuentan con limitaciones y exclusiones las cuáles pueden ser consultadas en www.bupasalud.com.mx. Para más información, llámanos al 55 5202-1701 ext 4 o envíanos un correo a: ventasdirectas@bupa.com.mx
B54: La presente cotización es de carácter informativo, no constituye una solicitud de seguro y/o el monto de la prima definitiva y/o las condiciones de la misma y/o una oferta de aseguramiento en términos del artículo 5to de la Ley Sobre el Contrato de Seguro. La emisión de la póliza así como posibles cambios en la tarifa están sujetos a valoración del riesgo de acuerdo con las políticas de Suscripción de Bupa México y es susceptible de modificaciones, por lo que Bupa podrá aceptar o negar el aseguramiento del riesgo propuesto.

Sheet Template PDF Comparativo
B15: Comparativo Cotizaciones
B17: Nombre del titular | C17: =Comparativo!D5 -> JUAN VIDAL | D17: ='Datos Asegurado'!B18 -> Nombre del agente: | E17: ='Datos Asegurado'!C18 -> 00:00:00
B18: Edad | C18: ='Datos Asegurado'!C8 -> 74 | D18: ='Datos Asegurado'!B19 -> Agencia: | E18: ='Datos Asegurado'!C19 -> 00:00:00
B19: Género | C19: ='Datos Asegurado'!C9 -> Femenino | D19: ='Datos Asegurado'!B6 -> Fecha Cotización: | E19: ='Datos Asegurado'!C6 -> 2024-06-28
B20: Lugar de residencia | C20: ='Datos Asegurado'!C11 -> Zona 1: CDMX, Area Metropolitana y Monterrey
B21: Número de integrantes cotizados: | C21: ='Datos Asegurado'!C13 -> 2
B23: Opción 1
B24: Suma asegurada (mxn) | C24: =Comparativo!D21 -> 1000000 | D24: Coaseguro | E24: =Comparativo!D25 -> 0.1
B25: Deducible (mxn) | C25: =Comparativo!D23 -> 15000 | D25: Tipo de cliente | E25: =Comparativo!D18 -> Nuevo negocio
B26: =Comparativo!E22 -> Maternidad | C26: =CONCATENATE(Comparativo!E23," ",Comparativo!F23) -> Titular: No | E26: =CONCATENATE(Comparativo!E24," ",Comparativo!F24) -> Conyuge: No
B27: Concepto | C27: Anual | D27: Semestral | E27: Trimestral | F27: Mensual
B28: =Comparativo!K19 -> Prima del asegurado titular: | C28: =Comparativo!L19 -> 7709 | D28: =Comparativo!M19 -> 8055.905 | E28: =Comparativo!N19 -> 8287.175 | F28: =Comparativo!O19 -> 8402.81
B29: =Comparativo!K20 -> Prima cónyuge: | C29: =Comparativo!L20 -> 7709 | D29: =Comparativo!M20 -> 8055.905 | E29: =Comparativo!N20 -> 8287.175 | F29: =Comparativo!O20 -> 8402.81
B30: =Comparativo!K21 -> Prima hijo(s): | C30: =Comparativo!L21 -> 7709 | D30: =Comparativo!M21 -> 8055.905 | E30: =Comparativo!N21 -> 8287.175 | F30: =Comparativo!O21 -> 8402.81
B31: =Comparativo!K22 -> Dependientes económicos | C31: =Comparativo!L22 -> 0 | D31: =Comparativo!M22 -> 0 | E31: =Comparativo!N22 -> 0 | F31: =Comparativo!O22 -> 0
B32: =Comparativo!K23 -> Asistencia en el extranjero: | C32: =Comparativo!L23 -> 1632 | D32: =Comparativo!M23 -> 1705.44 | E32: =Comparativo!N23 -> 1754.4 | F32: =Comparativo!O23 -> 1778.88
B33: =Comparativo!K24 -> Total Prima: | C33: =Comparativo!L24 -> 24759 | D33: =Comparativo!M24 -> 25873.155 | E33: =Comparativo!N24 -> 26615.925 | F33: =Comparativo!O24 -> 26987.31
B34: =Comparativo!K25 -> Derecho de póliza: | C34: =Comparativo!L25 -> 1500 | D34: =Comparativo!M25 -> 1500 | E34: =Comparativo!N25 -> 1500 | F34: =Comparativo!O25 -> 1500
B35: =Comparativo!K26 -> 0 | C35: =Comparativo!L26 -> 0 | D35: =Comparativo!M26 -> 0 | E35: =Comparativo!N26 -> 0 | F35: =Comparativo!O26 -> 0
B36: =Comparativo!K27 -> IVA (16%) | C36: =Comparativo!L27 -> 4201.44 | D36: =Comparativo!M27 -> 4379.7048 | E36: =Comparativo!N27 -> 4498.548 | F36: =Comparativo!O27 -> 4557.9696
B37: =Comparativo!K28 -> Costo total: | C37: =Comparativo!L28 -> 30460.44 | D37: =Comparativo!M28 -> 31752.8598 | E37: =Comparativo!N28 -> 32614.473 | F37: =Comparativo!O28 -> 33045.2796
B38: =Comparativo!K29 -> Primer Pago: | C38: =Comparativo!L29 -> 30460.44 | D38: =Comparativo!M29 -> 16746.4299 | E38: =Comparativo!N29 -> 9458.61825 | F38: =Comparativo!O29 -> 4348.7733
B39: =Comparativo!K30 -> Pagos Subsecuentes: | C39: =Comparativo!L30 -> 0 | D39: =Comparativo!M30 -> 15006.4299 | E39: =Comparativo!N30 -> 7718.61825 | F39: =Comparativo!O30 -> 2608.7733
B41: Opción 2
B42: Suma asegurada (mxn) | C42: =Comparativo!D37 -> 1000000 | D42: Coaseguro | E42: =Comparativo!D41 -> 0.1
B43: Deducible (mxn) | C43: =Comparativo!D39 -> 15000 | D43: Tipo de cliente | E43: =Comparativo!D34 -> Nuevo negocio
B44: =Comparativo!E38 -> Maternidad | C44: =CONCATENATE(Comparativo!E39," ",Comparativo!F39) -> Titular: No | E44: =CONCATENATE(Comparativo!E40," ",Comparativo!F40) -> Conyuge: No
B45: Concepto | C45: Anual | D45: Semestral | E45: Trimestral | F45: Mensual
B46: =Comparativo!K35 -> Prima del asegurado titular: | C46: =Comparativo!L35 -> 7709 | D46: =Comparativo!M35 -> 8055.905 | E46: =Comparativo!N35 -> 8287.175 | F46: =Comparativo!O35 -> 8402.81
B47: =Comparativo!K36 -> Prima cónyuge: | C47: =Comparativo!L36 -> 7709 | D47: =Comparativo!M36 -> 8055.905 | E47: =Comparativo!N36 -> 8287.175 | F47: =Comparativo!O36 -> 8402.81
B48: =Comparativo!K37 -> Prima hijo(s): | C48: =Comparativo!L37 -> 7709 | D48: =Comparativo!M37 -> 8055.905 | E48: =Comparativo!N37 -> 8287.175 | F48: =Comparativo!O37 -> 8402.81
B49: =Comparativo!K38 -> Dependientes económicos | C49: =Comparativo!L38 -> 0 | D49: =Comparativo!M38 -> 0 | E49: =Comparativo!N38 -> 0 | F49: =Comparativo!O38 -> 0
B50: =Comparativo!K39 -> Asistencia en el extranjero: | C50: =Comparativo!L39 -> 1632 | D50: =Comparativo!M39 -> 1705.44 | E50: =Comparativo!N39 -> 1754.4 | F50: =Comparativo!O39 -> 1778.88
B51: =Comparativo!K40 -> Total Prima: | C51: =Comparativo!L40 -> 24759 | D51: =Comparativo!M40 -> 25873.155 | E51: =Comparativo!N40 -> 26615.925 | F51: =Comparativo!O40 -> 26987.31
B52: =Comparativo!K41 -> Derecho de póliza: | C52: =Comparativo!L41 -> 1500 | D52: =Comparativo!M41 -> 1500 | E52: =Comparativo!N41 -> 1500 | F52: =Comparativo!O41 -> 1500
B53: =Comparativo!K42 -> 0 | C53: =Comparativo!L42 -> 0 | D53: =Comparativo!M42 -> 0 | E53: =Comparativo!N42 -> 0 | F53: =Comparativo!O42 -> 0
B54: =Comparativo!K43 -> IVA (16%) | C54: =Comparativo!L43 -> 4201.44 | D54: =Comparativo!M43 -> 4379.7048 | E54: =Comparativo!N43 -> 4498.548 | F54: =Comparativo!O43 -> 4557.9696
B55: =Comparativo!K44 -> Costo total: | C55: =Comparativo!L44 -> 30460.44 | D55: =Comparativo!M44 -> 31752.8598 | E55: =Comparativo!N44 -> 32614.473 | F55: =Comparativo!O44 -> 33045.2796
B56: =Comparativo!K45 -> Primer Pago: | C56: =Comparativo!L45 -> 30460.44 | D56: =Comparativo!M45 -> 16746.4299 | E56: =Comparativo!N45 -> 9458.61825 | F56: =Comparativo!O45 -> 4348.7733
B57: =Comparativo!K46 -> Pagos Subsecuentes: | C57: =Comparativo!L46 -> 0 | D57: =Comparativo!M46 -> 15006.4299 | E57: =Comparativo!N46 -> 7718.61825 | F57: =Comparativo!O46 -> 2608.7733
B59: Opción 3
B60: Suma asegurada (mxn) | C60: =Comparativo!D53 -> 1000000 | D60: Coaseguro | E60: =Comparativo!D57 -> 0.1
B61: Deducible (mxn) | C61: =Comparativo!D55 -> 15000 | D61: Tipo de cliente | E61: =Comparativo!D50 -> Nuevo negocio
B62: =Comparativo!E54 -> Maternidad | C62: =CONCATENATE(Comparativo!E55," ",Comparativo!F55) -> Titular: No | E62: =CONCATENATE(Comparativo!E56," ",Comparativo!F56) -> Conyuge: No
B63: Concepto | C63: Anual | D63: Semestral | E63: Trimestral | F63: Mensual
B64: =Comparativo!K51 -> Prima del asegurado titular: | C64: =Comparativo!L51 -> 7709 | D64: =Comparativo!M51 -> 8055.905 | E64: =Comparativo!N51 -> 8287.175 | F64: =Comparativo!O51 -> 8402.81
B65: =Comparativo!K52 -> Prima cónyuge: | C65: =Comparativo!L52 -> 7709 | D65: =Comparativo!M52 -> 8055.905 | E65: =Comparativo!N52 -> 8287.175 | F65: =Comparativo!O52 -> 8402.81
B66: =Comparativo!K53 -> Prima hijo(s): | C66: =Comparativo!L53 -> 7709 | D66: =Comparativo!M53 -> 8055.905 | E66: =Comparativo!N53 -> 8287.175 | F66: =Comparativo!O53 -> 8402.81
B67: =Comparativo!K54 -> Dependientes económicos | C67: =Comparativo!L54 -> 0 | D67: =Comparativo!M54 -> 0 | E67: =Comparativo!N54 -> 0 | F67: =Comparativo!O54 -> 0
B68: =Comparativo!K55 -> Asistencia en el extranjero: | C68: =Comparativo!L55 -> 1632 | D68: =Comparativo!M55 -> 1705.44 | E68: =Comparativo!N55 -> 1754.4 | F68: =Comparativo!O55 -> 1778.88
B69: =Comparativo!K56 -> Total Prima: | C69: =Comparativo!L56 -> 24759 | D69: =Comparativo!M56 -> 25873.155 | E69: =Comparativo!N56 -> 26615.925 | F69: =Comparativo!O56 -> 26987.31
B70: =Comparativo!K57 -> Derecho de póliza: | C70: =Comparativo!L57 -> 1500 | D70: =Comparativo!M57 -> 1500 | E70: =Comparativo!N57 -> 1500 | F70: =Comparativo!O57 -> 1500
B71: =Comparativo!K58 -> 0 | C71: =Comparativo!L58 -> 0 | D71: =Comparativo!M58 -> 0 | E71: =Comparativo!N58 -> 0 | F71: =Comparativo!O58 -> 0
B72: =Comparativo!K59 -> IVA (16%) | C72: =Comparativo!L59 -> 4201.44 | D72: =Comparativo!M59 -> 4379.7048 | E72: =Comparativo!N59 -> 4498.548 | F72: =Comparativo!O59 -> 4557.9696
B73: =Comparativo!K60 -> Costo total: | C73: =Comparativo!L60 -> 30460.44 | D73: =Comparativo!M60 -> 31752.8598 | E73: =Comparativo!N60 -> 32614.473 | F73: =Comparativo!O60 -> 33045.2796
B74: =Comparativo!K61 -> Primer Pago: | C74: =Comparativo!L61 -> 30460.44 | D74: =Comparativo!M61 -> 16746.4299 | E74: =Comparativo!N61 -> 9458.61825 | F74: =Comparativo!O61 -> 4348.7733
B75: =Comparativo!K62 -> Pagos Subsecuentes: | C75: =Comparativo!L62 -> 0 | D75: =Comparativo!M62 -> 15006.4299 | E75: =Comparativo!N62 -> 7718.61825 | F75: =Comparativo!O62 -> 2608.7733
B76: La presente cotización es de carácter informativo, no constituye una solicitud de seguro y/o el monto de la prima definitiva y/o las condiciones de la misma y/o una oferta de aseguramiento en términos del artículo 5to de la Ley Sobre el Contrato de Seguro. La emisión de la póliza así como posibles cambios en la tarifa están sujetos a valoración del riesgo de acuerdo con las políticas de Suscripción de Bupa México y es susceptible de modificaciones, por lo que Bupa podrá aceptar o negar el aseguramiento del riesgo propuesto.

Sheet Brochure

Sheet Versión (hidden)
A2: V.31
A3: Actualización: | B3: 2023-06-26 | C3: (A.Ext)

Sheet Objetos Estructura (hidden)
A1: Estructuras Maestras
A3: Estructura asegurado
B4: Seleccione una opción | C4: Masculino | D4: 10 | E4: 06 | F4: 1980

Sheet Master (hidden)
A1: Datos Maestros | R1: Prima Base | AC1: Prima Riesgo Nuevo NN Eliminacion periodos de espera | AE1: Prima Tarifa Nuevo Producto NN Eliminacion periodos de espera | AG1: Prima Tarifa Nuevo Producto Ren Eliminacion periodos de espera | AI1: Tarifa Base, elimación | AJ1: Aceptación Periodos de Espera | AK1: Bupa Internacional | AM1: Aplica descuento nuevo negocio | AN1: Asistencia en el extranjero | AO1: Aplica descuento por pago fraccionado
A2: Genero | B2: Lugares de residencia | C2: Zona | D2: FD Zona | E2: Parentezco | F2: Dias | G2: Meses | H2: Años | I2: Tipo Cliente | J2: Factor descuento | K2: Sumas aseguradas | L2: FD Suma asegurada | M2: Deducibles | N2: Maternidad Aplica | O2: FD Deducible | P2: Coasegurado | Q2: FD Coasegurado | R2: Edad | S2: 40000 | T2: Factor es mujer | U2: Administración | V2: Factor descuento | X2: Recargos | Y2: NN | Z2: Renovacion | AA2: Transfer | AB2: Seguro dental | AC2: Edad | AD2: Valor | AE2: Edad | AF2: Valor | AG2: Edad | AH2: Valor | AI2: Valor | AJ2: Valor | AK2: Valor | AM2: Si | AN2: Si | AO2: Si
A3: Masculino | B3: Zona 1: CDMX, Area Metropolitana y Monterrey | C3: Zona 1 | D3: 0.8 | E3: Seleccione una opción | F3: 01 | G3: 01 | H3: 1946 | I3: Nuevo negocio | J3: 1 | K3: 1000000 | L3: 0.87262 | M3: 0 | N3: Si | O3: 1 | P3: 0 | Q3: 1 | R3: 0 | S3: 16257.969 | T3: 2600 | U3: 1600 | V3: Tipo cliente | W3: =VLOOKUP('Datos Asegurado'!C24,Master!I3:J5,2,FALSE) -> 1 | X3: Administracion | Y3: 0.15 | Z3: 0.15 | AA3: 0.15 | AB3: 400 | AC3: =R3 -> 0 | AD3: =S3*$W$14+$AB$3 -> 400 | AE3: =AC3 -> 0 | AF3: =AD3/(1-SUM($Y$3:$Y$5)) -> 655.7377049 | AG3: =AE3 -> 0 | AH3: =AD3/(1-SUM($Z$3:$Z$5)) -> 625 | AI3: =AF3 -> 655.7377049 | AJ3: =AI3*90% -> 590.1639344 | AK3: =AI3 -> 655.7377049 | AM3: No | AN3: No | AO3: No
A4: Femenino | B4: Zona 2: Republica mexicana, excepto CDMX, Area Metropolitana y Monterrey | C4: Zona 2 | D4: 1 | E4: Conyuge | F4: 02 | G4: 02 | H4: 1947 | K4: 2000000 | M4: 15000 | P4: 0.1 | R4: 1 | S4: 14413.02784 | V4: Zona | W4: =VLOOKUP('Datos Asegurado'!C11,Master!B3:D35,3,FALSE) -> 0.8 | X4: Adquisicion | Y4: 0.2 | Z4: 0.17 | AA4: 0.09 | AC4: 1 | AD4: =S4*$W$14+$AB$3 -> 400 | AE4: =AC4 -> 1 | AF4: =AD4/(1-SUM($Y$3:$Y$5)) -> 655.7377049 | AG4: =AE4 -> 1 | AH4: =AD4/(1-SUM($Z$3:$Z$5)) -> 625 | AI4: =AF4 -> 655.7377049 | AJ4: =AI4*90% -> 590.1639344 | AK4: =AI4 -> 655.7377049
D5: 1 | E5: Hij@ | F5: 03 | G5: 03 | H5: 1948 | K5: 3000000 | M5: 30000 | P5: 0.2 | R5: 2 | S5: 12422.51997 | V5: Suma asegurada | W5: =VLOOKUP('Datos Asegurado'!C27,Master!K3:L6,2,FALSE) -> 0.87262 | X5: Utilidad | Y5: 0.04 | Z5: 0.04 | AA5: 0.04 | AC5: 2 | AD5: 400 | AE5: 2 | AF5: 655.7377049 | AG5: 2 | AH5: 625 | AI5: 655.7377049 | AJ5: 590.1639344 | AK5: 655.7377049
D6: 0.8 | E6: Dependiente economico | F6: 04 | G6: 04 | H6: 1949 | K6: 4000000 | M6: 50000 | R6: 3 | S6: 11563.46358 | V6: Deducible | W6: =VLOOKUP('Datos Asegurado'!C29,Master!M3:O11,3,FALSE) -> 0 | X6: Total | Y6: =SUM(Y3:Y5) -> 0.39 | Z6: =SUM(Z3:Z5) -> 0.36 | AA6: =SUM(AA3:AA5) -> 0.28 | AC6: 3 | AD6: 400 | AE6: 3 | AF6: 655.7377049 | AG6: 3 | AH6: 625 | AI6: 655.7377049 | AJ6: 590.1639344 | AK6: 655.7377049
D7: 0.8 | F7: 05 | G7: 05 | H7: 1950 | K7: 5000000 | M7: 100000 | R7: 4 | S7: 10630.92706 | V7: Coasegurado | W7: =VLOOKUP('Datos Asegurado'!C31,Master!P3:Q7,2,FALSE) -> 0 | X7: 1-Total | Y7: =1-Y6 -> 0.61 | Z7: =1-Z6 -> 0.64 | AA7: =1-AA6 -> 0.72 | AC7: 4 | AD7: 400 | AE7: 4 | AF7: 655.7377049 | AG7: 4 | AH7: 625 | AI7: 655.7377049 | AJ7: 590.1639344 | AK7: 655.7377049
D8: 0.8 | F8: 06 | G8: 06 | H8: 1951 | K8: 10000000 | R8: 5 | S8: 10995.29441 | V8: Cobertura Extranjero: (no) | W8: 0.85493 | AC8: 5 | AD8: 400 | AE8: 5 | AF8: 655.7377049 | AG8: 5 | AH8: 625 | AI8: 655.7377049 | AJ8: 590.1639344 | AK8: 655.7377049
D9: 0.8 | F9: 07 | G9: 07 | H9: 1952 | R9: 6 | S9: 11372.15019 | V9: Reducción Honorarios: (Reducido) | W9: 0.9 | AC9: 6 | AD9: 400 | AE9: 6 | AF9: 655.7377049 | AG9: 6 | AH9: 625 | AI9: 655.7377049 | AJ9: 590.1639344 | AK9: 655.7377049
D10: 0.8 | F10: 08 | G10: 08 | H10: 1953 | P10: Tope coaseguro | R10: 7 | S10: 11761.92243 | V10: Copago Medicamentos: (0) | W10: 1 | AC10: 7 | AD10: 400 | AE10: 7 | AF10: 655.7377049 | AG10: 7 | AH10: 625 | AI10: 655.7377049 | AJ10: 590.1639344 | AK10: 655.7377049
D11: 1 | F11: 09 | G11: 09 | H11: 1954 | P11: 30000 | R11: 8 | S11: 12165.05382 | V11: Reduccion a Consultas: (25) | W11: 0.98 | AC11: 8 | AD11: 400 | AE11: 8 | AF11: 655.7377049 | AG11: 8 | AH11: 625 | AI11: 655.7377049 | AJ11: 590.1639344 | AK11: 655.7377049
D12: 0.8 | F12: 10 | G12: 10 | H12: 1955 | P12: 40000 | R12: 9 | S12: 12582.00226 | V12: Re. Renuncia utilidad: (Si) | W12: 0.95 | AC12: 9 | AD12: 400 | AE12: 9 | AF12: 655.7377049 | AG12: 9 | AH12: 625 | AI12: 655.7377049 | AJ12: 590.1639344 | AK12: 655.7377049
D13: 0.8 | F13: 11 | G13: 11 | H13: 1956 | R13: 10 | S13: 13013.2413 | V13: Re. Adicional Actuarial: (Si) | W13: 0.95 | AC13: 10 | AD13: 400 | AE13: 10 | AF13: 655.7377049 | AG13: 10 | AH13: 625 | AI13: 655.7377049 | AJ13: 590.1639344 | AK13: 655.7377049
D14: 0.8 | F14: 12 | G14: 12 | H14: 1957 | R14: 11 | S14: 13459.26075 | V14: Factor descuento sin tipo cliente | W14: =W5*W6*W7*W8*W9*W10*W11*W12*W13*W4 -> 0 | AC14: 11 | AD14: 400 | AE14: 11 | AF14: 655.7377049 | AG14: 11 | AH14: 625 | AI14: 655.7377049 | AJ14: 590.1639344 | AK14: 655.7377049
D15: 0.8 | F15: 13 | H15: 1958 | R15: 12 | S15: 13920.56719 | V15: Factor descuento con tipo cliente | W15: =W3*W4*W5*W6*W7*W8*W9*W10*W11*W12*W13 -> 0 | AC15: 12 | AD15: 400 | AE15: 12 | AF15: 655.7377049 | AG15: 12 | AH15: 625 | AI15: 655.7377049 | AJ15: 590.1639344 | AK15: 655.7377049
D16: 0.8 | F16: 14 | H16: 1959 | R16: 13 | S16: 14397.68458 | AC16: 13 | AD16: 400 | AE16: 13 | AF16: 655.7377049 | AG16: 13 | AH16: 625 | AI16: 655.7377049 | AJ16: 590.1639344 | AK16: 655.7377049
D17: 1 | F17: 15 | H17: 1960 | R17: 14 | S17: 14891.15482 | AC17: 14 | AD17: 400 | AE17: 14 | AF17: 655.7377049 | AG17: 14 | AH17: 625 | AI17: 655.7377049 | AJ17: 590.1639344 | AK17: 655.7377049
D18: 0.8 | F18: 16 | H18: 1961 | R18: 15 | S18: 15401.5384 | AC18: 15 | AD18: 400 | AE18: 15 | AF18: 655.7377049 | AG18: 15 | AH18: 625 | AI18: 655.7377049 | AJ18: 590.1639344 | AK18: 655.7377049
D19: 0.8 | F19: 17 | H19: 1962 | R19: 16 | S19: 15929.41501 | AC19: 16 | AD19: 400 | AE19: 16 | AF19: 655.7377049 | AG19: 16 | AH19: 625 | AI19: 655.7377049 | AJ19: 590.1639344 | AK19: 655.7377049
D20: 0.8 | F20: 18 | H20: 1963 | R20: 17 | S20: 16475.38421 | AC20: 17 | AD20: 400 | AE20: 17 | AF20: 655.7377049 | AG20: 17 | AH20: 625 | AI20: 655.7377049 | AJ20: 590.1639344 | AK20: 655.7377049
D21: 1 | F21: 19 | H21: 1964 | R21: 18 | S21: 16973.02601 | AC21: 18 | AD21: 400 | AE21: 18 | AF21: 655.7377049 | AG21: 18 | AH21: 625 | AI21: 655.7377049 | AJ21: 590.1639344 | AK21: 655.7377049
D22: 0.8 | F22: 20 | H22: 1965 | R22: 19 | S22: 17712.20798 | AC22: 19 | AD22: 400 | AE22: 19 | AF22: 655.7377049 | AG22: 19 | AH22: 625 | AI22: 655.7377049 | AJ22: 590.1639344 | AK22: 655.7377049
D23: 0.8 | F23: 21 | H23: 1966 | R23: 20 | S23: 18521.78824 | AC23: 20 | AD23: 400 | AE23: 20 | AF23: 655.7377049 | AG23: 20 | AH23: 625 | AI23: 655.7377049 | AJ23: 590.1639344 | AK23: 655.7377049
D24: 0.8 | F24: 22 | H24: 1967 | R24: 21 | S24: 19331.36849 | AC24: 21 | AD24: 400 | AE24: 21 | AF24: 655.7377049 | AG24: 21 | AH24: 625 | AI24: 655.7377049 | AJ24: 590.1639344 | AK24: 655.7377049
D25: 1 | F25: 23 | H25: 1968 | R25: 22 | S25: 20091.66995 | AC25: 22 | AD25: 400 | AE25: 22 | AF25: 655.7377049 | AG25: 22 | AH25: 625 | AI25: 655.7377049 | AJ25: 590.1639344 | AK25: 655.7377049
D26: 0.8 | F26: 24 | H26: 1969 | R26: 23 | S26: 20957.56883 | AC26: 23 | AD26: 400 | AE26: 23 | AF26: 655.7377049 | AG26: 23 | AH26: 625 | AI26: 655.7377049 | AJ26: 590.1639344 | AK26: 655.7377049
D27: 0.8 | F27: 25 | H27: 1970 | R27: 24 | S27: 21767.14908 | AC27: 24 | AD27: 400 | AE27: 24 | AF27: 655.7377049 | AG27: 24 | AH27: 625 | AI27: 655.7377049 | AJ27: 590.1639344 | AK27: 655.7377049
D28: 0.8 | F28: 26 | H28: 1971 | R28: 25 | S28: 22330.33534 | AC28: 25 | AD28: 400 | AE28: 25 | AF28: 655.7377049 | AG28: 25 | AH28: 625 | AI28: 655.7377049 | AJ28: 590.1639344 | AK28: 655.7377049
D29: 1 | F29: 27 | H29: 1972 | R29: 26 | S29: 23196.23422 | AC29: 26 | AD29: 400 | AE29: 26 | AF29: 655.7377049 | AG29: 26 | AH29: 625 | AI29: 655.7377049 | AJ29: 590.1639344 | AK29: 655.7377049
D30: 0.8 | F30: 28 | H30: 1973 | R30: 27 | S30: 24033.97379 | AC30: 27 | AD30: 400 | AE30: 27 | AF30: 655.7377049 | AG30: 27 | AH30: 625 | AI30: 655.7377049 | AJ30: 590.1639344 | AK30: 655.7377049
D31: 0.8 | F31: 29 | H31: 1974 | R31: 28 | S31: 24899.87267 | AC31: 28 | AD31: 400 | AE31: 28 | AF31: 655.7377049 | AG31: 28 | AH31: 625 | AI31: 655.7377049 | AJ31: 590.1639344 | AK31: 655.7377049
D32: 0.8 | F32: 30 | H32: 1975 | R32: 29 | S32: 25962.88674 | AC32: 29 | AD32: 400 | AE32: 29 | AF32: 655.7377049 | AG32: 29 | AH32: 625 | AI32: 655.7377049 | AJ32: 590.1639344 | AK32: 655.7377049
D33: 0.8 | F33: 31 | H33: 1976 | R33: 30 | S33: 28307.93177 | AC33: 30 | AD33: 400 | AE33: 30 | AF33: 655.7377049 | AG33: 30 | AH33: 625 | AI33: 655.7377049 | AJ33: 590.1639344 | AK33: 655.7377049
D34: 0.8 | H34: 1977 | R34: 31 | S34: 29506.42342 | AC34: 31 | AD34: 400 | AE34: 31 | AF34: 655.7377049 | AG34: 31 | AH34: 625 | AI34: 655.7377049 | AJ34: 590.1639344 | AK34: 655.7377049
D35: 0.8 | H35: 1978 | R35: 32 | S35: 30690.20966 | AC35: 32 | AD35: 400 | AE35: 32 | AF35: 655.7377049 | AG35: 32 | AH35: 625 | AI35: 655.7377049 | AJ35: 590.1639344 | AK35: 655.7377049
H36: 1979 | R36: 33 | S36: 31513.71313 | AC36: 33 | AD36: 400 | AE36: 33 | AF36: 655.7377049 | AG36: 33 | AH36: 625 | AI36: 655.7377049 | AJ36: 590.1639344 | AK36: 655.7377049
H37: 1980 | R37: 34 | S37: 32396.03828 | AC37: 34 | AD37: 400 | AE37: 34 | AF37: 655.7377049 | AG37: 34 | AH37: 625 | AI37: 655.7377049 | AJ37: 590.1639344 | AK37: 655.7377049
H38: 1981 | R38: 35 | S38: 33212.18904 | AC38: =R38 -> 35 | AD38: 400 | AE38: 35 | AF38: 655.7377049 | AG38: 35 | AH38: 625 | AI38: 655.7377049 | AJ38: 590.1639344 | AK38: 655.7377049
H39: 1982 | R39: 36 | S39: 34065.10334 | AC39: 36 | AD39: 400 | AE39: 36 | AF39: 655.7377049 | AG39: 36 | AH39: 625 | AI39: 655.7377049 | AJ39: 590.1639344 | AK39: 655.7377049
H40: 1983 | R40: 37 | S40: 34918.01765 | AC40: 37 | AD40: 400 | AE40: 37 | AF40: 655.7377049 | AG40: 37 | AH40: 625 | AI40: 655.7377049 | AJ40: 590.1639344 | AK40: 655.7377049
H41: 1984 | R41: 38 | S41: 35734.16841 | AC41: 38 | AD41: 400 | AE41: 38 | AF41: 655.7377049 | AG41: 38 | AH41: 625 | AI41: 655.7377049 | AJ41: 590.1639344 | AK41: 655.7377049
H42: 1985 | R42: 39 | S42: 36851.78026 | AC42: 39 | AD42: 400 | AE42: 39 | AF42: 655.7377049 | AG42: 39 | AH42: 625 | AI42: 655.7377049 | AJ42: 590.1639344 | AK42: 655.7377049
H43: 1986 | R43: 40 | S43: 37866.45418 | AC43: 40 | AD43: 400 | AE43: 40 | AF43: 655.7377049 | AG43: 40 | AH43: 625 | AI43: 655.7377049 | AJ43: 590.1639344 | AK43: 655.7377049
H44: 1987 | R44: 41 | S44: 38866.42268 | AC44: 41 | AD44: 400 | AE44: 41 | AF44: 655.7377049 | AG44: 41 | AH44: 625 | AI44: 655.7377049 | AJ44: 590.1639344 | AK44: 655.7377049
H45: 1988 | R45: 42 | S45: 39881.0966 | AC45: 42 | AD45: 400 | AE45: 42 | AF45: 655.7377049 | AG45: 42 | AH45: 625 | AI45: 655.7377049 | AJ45: 590.1639344 | AK45: 655.7377049
H46: 1989 | R46: 43 | S46: 41042.82471 | AC46: 43 | AD46: 400 | AE46: 43 | AF46: 655.7377049 | AG46: 43 | AH46: 625 | AI46: 655.7377049 | AJ46: 590.1639344 | AK46: 655.7377049
H47: 1990 | R47: 44 | S47: 42241.31636 | AC47: 44 | AD47: 400 | AE47: 44 | AF47: 655.7377049 | AG47: 44 | AH47: 625 | AI47: 655.7377049 | AJ47: 590.1639344 | AK47: 655.7377049
H48: 1991 | R48: 45 | S48: 43879.64085 | AC48: 45 | AD48: 400 | AE48: 45 | AF48: 655.7377049 | AG48: 45 | AH48: 625 | AI48: 655.7377049 | AJ48: 590.1639344 | AK48: 655.7377049
H49: 1992 | R49: 46 | S49: 45128.03707 | AC49: 46 | AD49: 400 | AE49: 46 | AF49: 655.7377049 | AG49: 46 | AH49: 625 | AI49: 655.7377049 | AJ49: 590.1639344 | AK49: 655.7377049
H50: 1993 | R50: 47 | S50: 46316.98584 | AC50: 47 | AD50: 400 | AE50: 47 | AF50: 655.7377049 | AG50: 47 | AH50: 625 | AI50: 655.7377049 | AJ50: 590.1639344 | AK50: 655.7377049
H51: 1994 | R51: 48 | S51: 48598.28131 | AC51: 48 | AD51: 400 | AE51: 48 | AF51: 655.7377049 | AG51: 48 | AH51: 625 | AI51: 655.7377049 | AJ51: 590.1639344 | AK51: 655.7377049
H52: 1995 | R52: 49 | S52: 50188.5003 | AC52: 49 | AD52: 400 | AE52: 49 | AF52: 655.7377049 | AG52: 49 | AH52: 625 | AI52: 655.7377049 | AJ52: 590.1639344 | AK52: 655.7377049
H53: 1996 | R53: 50 | S53: 52090.97479 | AC53: 50 | AD53: 400 | AE53: 50 | AF53: 655.7377049 | AG53: 50 | AH53: 625 | AI53: 655.7377049 | AJ53: 590.1639344 | AK53: 655.7377049
H54: 1997 | R54: 51 | S54: 53427.60352 | AC54: 51 | AD54: 400 | AE54: 51 | AF54: 655.7377049 | AG54: 51 | AH54: 625 | AI54: 655.7377049 | AJ54: 590.1639344 | AK54: 655.7377049
H55: 1998 | R55: 52 | S55: 55865.80894 | AC55: 52 | AD55: 400 | AE55: 52 | AF55: 655.7377049 | AG55: 52 | AH55: 625 | AI55: 655.7377049 | AJ55: 590.1639344 | AK55: 655.7377049
H56: 1999 | R56: 53 | S56: 59037.32981 | AC56: 53 | AD56: 400 | AE56: 53 | AF56: 655.7377049 | AG56: 53 | AH56: 625 | AI56: 655.7377049 | AJ56: 590.1639344 | AK56: 655.7377049
H57: 2000 | R57: 54 | S57: 62777.90346 | AC57: 54 | AD57: 400 | AE57: 54 | AF57: 655.7377049 | AG57: 54 | AH57: 625 | AI57: 655.7377049 | AJ57: 590.1639344 | AK57: 655.7377049
H58: 2001 | R58: 55 | S58: 67440.85106 | AC58: 55 | AD58: 400 | AE58: 55 | AF58: 655.7377049 | AG58: 55 | AH58: 625 | AI58: 655.7377049 | AJ58: 590.1639344 | AK58: 655.7377049
H59: 2002 | R59: 56 | S59: 72945.2928 | AC59: 56 | AD59: 400 | AE59: 56 | AF59: 655.7377049 | AG59: 56 | AH59: 625 | AI59: 655.7377049 | AJ59: 590.1639344 | AK59: 655.7377049
H60: 2003 | R60: 57 | S60: 76482.18076 | AC60: 57 | AD60: 400 | AE60: 57 | AF60: 655.7377049 | AG60: 57 | AH60: 625 | AI60: 655.7377049 | AJ60: 590.1639344 | AK60: 655.7377049
H61: 2004 | R61: 58 | S61: 82089.63865 | AC61: 58 | AD61: 400 | AE61: 58 | AF61: 655.7377049 | AG61: 58 | AH61: 625 | AI61: 655.7377049 | AJ61: 590.1639344 | AK61: 655.7377049
H62: 2005 | R62: 59 | S62: 87834.06032 | AC62: 59 | AD62: 400 | AE62: 59 | AF62: 655.7377049 | AG62: 59 | AH62: 625 | AI62: 655.7377049 | AJ62: 590.1639344 | AK62: 655.7377049
H63: 2006 | R63: 60 | S63: 94150.50714 | AC63: 60 | AD63: 400 | AE63: 60 | AF63: 655.7377049 | AG63: 60 | AH63: 625 | AI63: 655.7377049 | AJ63: 590.1639344 | AK63: 655.7377049
H64: 2007 | R64: 61 | S64: 100587.8044 | AC64: 61 | AD64: 400 | AE64: 61 | AF64: 655.7377049 | AG64: 61 | AH64: 625 | AI64: 655.7377049 | AJ64: 590.1639344 | AK64: 655.7377049
H65: 2008 | R65: 62 | S65: 107226.5189 | AC65: 62 | AD65: 400 | AE65: 62 | AF65: 655.7377049 | AG65: 62 | AH65: 625 | AI65: 655.7377049 | AJ65: 590.1639344 | AK65: 655.7377049
H66: 2009 | R66: 63 | S66: 116830.0962 | AC66: 63 | AD66: 400 | AE66: 63 | AF66: 655.7377049 | AG66: 63 | AH66: 625 | AI66: 655.7377049 | AJ66: 590.1639344 | AK66: 655.7377049
H67: 2010 | R67: 64 | S67: 127859.7081 | AC67: 64 | AD67: 400 | AE67: 64 | AF67: 655.7377049 | AG67: 64 | AH67: 625 | AI67: 655.7377049 | AJ67: 590.1639344 | AK67: 655.7377049
H68: 2011 | R68: 65 | S68: 138163.3572 | AC68: 65 | AD68: =S68*$W$14+$AB$3 -> 400 | AE68: =AC68 -> 65 | AF68: =AD68/(1-SUM($Y$3:$Y$5)) -> 655.7377049 | AG68: =AE68 -> 65 | AH68: =AD68/(1-SUM($Z$3:$Z$5)) -> 625 | AI68: =AF68 -> 655.7377049 | AJ68: =AI68*90% -> 590.1639344 | AK68: =AI68 -> 655.7377049
H69: 2012 | R69: 66 | S69: 147274.4594 | AC69: 66 | AD69: 400 | AE69: 66 | AF69: 655.7377049 | AG69: 66 | AH69: 625 | AI69: 655.7377049 | AJ69: 590.1639344 | AK69: 655.7377049
H70: 2013 | R70: 67 | S70: 156556.3948 | AC70: 67 | AD70: 400 | AE70: 67 | AF70: 655.7377049 | AG70: 67 | AH70: 625 | AI70: 655.7377049 | AJ70: 590.1639344 | AK70: 655.7377049
H71: 2014 | R71: 68 | S71: 169084.1603 | AC71: 68 | AD71: 400 | AE71: 68 | AF71: 655.7377049 | AG71: 68 | AH71: 625 | AI71: 655.7377049 | AJ71: 590.1639344 | AK71: 655.7377049
H72: 2015 | R72: 69 | S72: 181864.1082 | AC72: 69 | AD72: 400 | AE72: 69 | AF72: 655.7377049 | AG72: 69 | AH72: 625 | AI72: 655.7377049 | AJ72: 590.1639344 | AK72: 655.7377049
H73: 2016 | R73: 70 | S73: 194701.0004 | AC73: 70 | AD73: 400 | AE73: 70 | AF73: 655.7377049 | AG73: 70 | AH73: 625 | AI73: 655.7377049 | AJ73: 590.1639344 | AK73: 655.7377049
H74: 2017 | R74: 71 | S74: 207668.0512 | AC74: 71 | AD74: 400 | AE74: 71 | AF74: 655.7377049 | AG74: 71 | AH74: 625 | AI74: 655.7377049 | AJ74: 590.1639344 | AK74: 655.7377049
H75: 2018 | R75: 72 | S75: 220740.8559 | AC75: 72 | AD75: 400 | AE75: 72 | AF75: 655.7377049 | AG75: 72 | AH75: 625 | AI75: 655.7377049 | AJ75: 590.1639344 | AK75: 655.7377049
H76: 2019 | R76: 73 | S76: 236189.0551 | AC76: 73 | AD76: 400 | AE76: 73 | AF76: 655.7377049 | AG76: 73 | AH76: 625 | AI76: 655.7377049 | AJ76: 590.1639344 | AK76: 655.7377049
H77: 2020 | R77: 74 | S77: 251767.413 | AC77: 74 | AD77: 400 | AE77: 74 | AF77: 655.7377049 | AG77: 74 | AH77: 625 | AI77: 655.7377049 | AJ77: 590.1639344 | AK77: 655.7377049
H78: 2021 | R78: 75 | S78: 267500.3341 | AC78: 75 | AD78: 400 | AE78: 75 | AF78: 655.7377049 | AG78: 75 | AH78: 625 | AI78: 655.7377049 | AJ78: 590.1639344 | AK78: 655.7377049
H79: 2022 | R79: 76 | S79: 283379.6837 | AC79: 76 | AD79: 400 | AE79: 76 | AF79: 655.7377049 | AG79: 76 | AH79: 625 | AI79: 655.7377049 | AJ79: 590.1639344 | AK79: 655.7377049
H80: 2023 | R80: 77 | S80: 299372.922 | AC80: 77 | AD80: 400 | AE80: 77 | AF80: 655.7377049 | AG80: 77 | AH80: 625 | AI80: 655.7377049 | AJ80: 590.1639344 | AK80: 655.7377049
R81: 78 | S81: 315813.5806 | AC81: 78 | AD81: 400 | AE81: 78 | AF81: 655.7377049 | AG81: 78 | AH81: 625 | AI81: 655.7377049 | AJ81: 590.1639344 | AK81: 655.7377049
R82: 79 | S82: 332441.3421 | AC82: 79 | AD82: 400 | AE82: 79 | AF82: 655.7377049 | AG82: 79 | AH82: 625 | AI82: 655.7377049 | AJ82: 590.1639344 | AK82: 655.7377049
R83: 80 | S83: 349264.3416 | AC83: 80 | AD83: 400 | AE83: 80 | AF83: 655.7377049 | AG83: 80 | AH83: 625 | AI83: 655.7377049 | AJ83: 590.1639344 | AK83: 655.7377049
R84: 81 | S84: 366062.9363 | AC84: 81 | AD84: 400 | AE84: 81 | AF84: 655.7377049 | AG84: 81 | AH84: 625 | AI84: 655.7377049 | AJ84: 590.1639344 | AK84: 655.7377049
R85: 82 | S85: 383138.118 | AC85: 82 | AD85: 400 | AE85: 82 | AF85: 655.7377049 | AG85: 82 | AH85: 625 | AI85: 655.7377049 | AJ85: 590.1639344 | AK85: 655.7377049
R86: 83 | S86: 400359.7282 | AC86: 83 | AD86: 400 | AE86: 83 | AF86: 655.7377049 | AG86: 83 | AH86: 625 | AI86: 655.7377049 | AJ86: 590.1639344 | AK86: 655.7377049
R87: 84 | S87: 417573.2035 | AC87: 84 | AD87: 400 | AE87: 84 | AF87: 655.7377049 | AG87: 84 | AH87: 625 | AI87: 655.7377049 | AJ87: 590.1639344 | AK87: 655.7377049

Sheet MasterBase (hidden)
A1: Producto Seleccionado | M1: Tarifas base
A2: Contrucción del plan seleccionado | M2: Llave de busqueda | N2: PlanName | O2: Region | P2: LowAge | Q2: Rate
A3: Suma asegurada | B3: Deducible | C3: Coaseguro | D3: TopeCoaseguro | E3: Tipo de cliente | F3: Código de producto | M3: NVFS1D0C5TC20Mexico Region 1 BNV18 | N3: NVFS1D0C5TC20 | O3: Mexico Region 1 BNV | P3: 18 | Q3: 8756
A4: ='Datos Asegurado'!C27/1000000 -> 1 | B4: ='Datos Asegurado'!C29/1000 -> 15 | C4: ='Datos Asegurado'!C31*100 -> 10 | D4: ='Datos Asegurado'!C33/1000 -> 30 | E4: 0 | F4: =CONCATENATE("NVFS",A4,"D",B4,"C",C4,IF(D4=0,"","TC"),IF(D4=0,"",D4)) -> NVFS1D15C10TC30 | M4: NVFS1D0C5TC20Mexico Region 1 BNV19 | N4: NVFS1D0C5TC20 | O4: Mexico Region 1 BNV | P4: 19 | Q4: 9016
M5: NVFS1D0C5TC20Mexico Region 1 BNV20 | N5: NVFS1D0C5TC20 | O5: Mexico Region 1 BNV | P5: 20 | Q5: 9282
A6: Región seleccionada | M6: NVFS1D0C5TC20Mexico Region 1 BNV21 | N6: NVFS1D0C5TC20 | O6: Mexico Region 1 BNV | P6: 21 | Q6: 9558
A7: =IF('Datos Asegurado'!C11="Zona 1: CDMX, Area Metropolitana y Monterrey","Mexico Region 1 BNV","Mexico Region 2 (no CDMX, ZM Y MTY)") -> Mexico Region 1 BNV | M7: NVFS1D0C5TC20Mexico Region 1 BNV22 | N7: NVFS1D0C5TC20 | O7: Mexico Region 1 BNV | P7: 22 | Q7: 9842
M8: NVFS1D0C5TC20Mexico Region 1 BNV23 | N8: NVFS1D0C5TC20 | O8: Mexico Region 1 BNV | P8: 23 | Q8: 10133
A9: Edad titular | B9: Sexo titular | C9: Valor prima | M9: NVFS1D0C5TC20Mexico Region 1 BNV24 | N9: NVFS1D0C5TC20 | O9: Mexico Region 1 BNV | P9: 24 | Q9: 10435
A10: ='Datos Asegurado'!C8 -> 74 | B10: =IF('Datos Asegurado'!C9="Masculino","Male","Female") -> Female | C10: =IFERROR(VLOOKUP(CONCATENATE($F$4,$A$7,A10),$M$3:$Q$72383,5,FALSE),0) -> 112902 | M10: NVFS1D0C5TC20Mexico Region 1 BNV25 | N10: NVFS1D0C5TC20 | O10: Mexico Region 1 BNV | P10: 25 | Q10: 10744
M11: NVFS1D0C5TC20Mexico Region 1 BNV26 | N11: NVFS1D0C5TC20 | O11: Mexico Region 1 BNV | P11: 26 | Q11: 11063
M12: NVFS1D0C5TC20Mexico Region 1 BNV27 | N12: NVFS1D0C5TC20 | O12: Mexico Region 1 BNV | P12: 27 | Q12: 11391
A13: Conyuges | E13: Hijos | I13: Dependientes | M13: NVFS1D0C5TC20Mexico Region 1 BNV28 | N13: NVFS1D0C5TC20 | O13: Mexico Region 1 BNV | P13: 28 | Q13: 11730
A14: Econyugues | B14: S Conyugues | C14: Valor prima | E14: E hijos | F14: S Hijos | G14: Valor prima | I14: E dependientes | J14: S dependientes | K14: Valor prima | M14: NVFS1D0C5TC20Mexico Region 1 BNV29 | N14: NVFS1D0C5TC20 | O14: Mexico Region 1 BNV | P14: 29 | Q14: 12079
A15: =IF('Datos Asegurado'!I6="Conyuge",'Datos Asegurado'!N6,"") -> 24 | B15: =IF('Datos Asegurado'!I6="Conyuge",IF('Datos Asegurado'!J6="Masculino","Male","Female"),"") -> Female | C15: =IFERROR(VLOOKUP(CONCATENATE($F$4,$A$7,A15),$M$3:$Q$72383,5,FALSE),0) -> 9619 | E15: =IF('Datos Asegurado'!I6="Hij@",'Datos Asegurado'!N6,"") ->  | F15: =IF('Datos Asegurado'!I6="Hij@",IF('Datos Asegurado'!J6="Masculino","Male","Female"),"") ->  | G15: =IFERROR(VLOOKUP(CONCATENATE($F$4,$A$7,E15),$M$3:$Q$72383,5,FALSE),0) -> 0 | I15: =IF('Datos Asegurado'!I6="Dependiente economico",'Datos Asegurado'!N6,"") ->  | J15: =IF('Datos Asegurado'!I6="Dependiente economico",IF('Datos Asegurado'!J6="Masculino","Male","Female"),"") ->  | K15: =IFERROR(VLOOKUP(CONCATENATE($F$4,$A$7,I15),$M$3:$Q$72383,5,FALSE),0) -> 0 | M15: NVFS1D0C5TC20Mexico Region 1 BNV30 | N15: NVFS1D0C5TC20 | O15: Mexico Region 1 BNV | P15: 30 | Q15: 13630
A16: =IF('Datos Asegurado'!I7="Conyuge",'Datos Asegurado'!N7,"") ->  | B16: =IF('Datos Asegurado'!I7="Conyuge",IF('Datos Asegurado'!J7="Masculino","Male","Female"),"") ->  | C16: =IFERROR(VLOOKUP(CONCATENATE($F$4,$A$7,A16),$M$3:$Q$72383,5,FALSE),0) -> 0 | E16: =IF('Datos Asegurado'!I7="Hij@",'Datos Asegurado'!N7,"") -> 9 | F16: =IF('Datos Asegurado'!I7="Hij@",IF('Datos Asegurado'!J7="Masculino","Male","Female"),"") -> Male | G16: =IFERROR(VLOOKUP(CONCATENATE($F$4,$A$7,E16),$M$3:$Q$72383,5,FALSE),0) -> 6075 | I16: =IF('Datos Asegurado'!I7="Dependiente economico",'Datos Asegurado'!N7,"") ->  | J16: =IF('Datos Asegurado'!I7="Dependiente economico",IF('Datos Asegurado'!J7="Masculino","Male","Female"),"") ->  | K16: =IFERROR(VLOOKUP(CONCATENATE($F$4,$A$7,I16),$M$3:$Q$72383,5,FALSE),0) -> 0 | M16: NVFS1D0C5TC20Mexico Region 1 BNV31 | N16: NVFS1D0C5TC20 | O16: Mexico Region 1 BNV | P16: 31 | Q16: 14037
A17: =IF('Datos Asegurado'!I8="Conyuge",'Datos Asegurado'!N8,"") ->  | B17: =IF('Datos Asegurado'!I8="Conyuge",IF('Datos Asegurado'!J8="Masculino","Male","Female"),"") ->  | C17: 0 | E17: =IF('Datos Asegurado'!I8="Hij@",'Datos Asegurado'!N8,"") ->  | F17: =IF('Datos Asegurado'!I8="Hij@",IF('Datos Asegurado'!J8="Masculino","Male","Female"),"") ->  | G17: 0 | I17: =IF('Datos Asegurado'!I8="Dependiente economico",'Datos Asegurado'!N8,"") ->  | J17: =IF('Datos Asegurado'!I8="Dependiente economico",IF('Datos Asegurado'!J8="Masculino","Male","Female"),"") ->  | K17: 0 | M17: NVFS1D0C5TC20Mexico Region 1 BNV32 | N17: NVFS1D0C5TC20 | O17: Mexico Region 1 BNV | P17: 32 | Q17: 14454
A18: =IF('Datos Asegurado'!I9="Conyuge",'Datos Asegurado'!N9,"") ->  | B18: =IF('Datos Asegurado'!I9="Conyuge",IF('Datos Asegurado'!J9="Masculino","Male","Female"),"") ->  | C18: 0 | E18: =IF('Datos Asegurado'!I9="Hij@",'Datos Asegurado'!N9,"") ->  | F18: =IF('Datos Asegurado'!I9="Hij@",IF('Datos Asegurado'!J9="Masculino","Male","Female"),"") ->  | G18: 0 | I18: =IF('Datos Asegurado'!I9="Dependiente economico",'Datos Asegurado'!N9,"") ->  | J18: =IF('Datos Asegurado'!I9="Dependiente economico",IF('Datos Asegurado'!J9="Masculino","Male","Female"),"") ->  | K18: 0 | M18: NVFS1D0C5TC20Mexico Region 1 BNV33 | N18: NVFS1D0C5TC20 | O18: Mexico Region 1 BNV | P18: 33 | Q18: 14884
A19: =IF('Datos Asegurado'!I10="Conyuge",'Datos Asegurado'!N10,"") ->  | B19: =IF('Datos Asegurado'!I10="Conyuge",IF('Datos Asegurado'!J10="Masculino","Male","Female"),"") ->  | C19: 0 | E19: =IF('Datos Asegurado'!I10="Hij@",'Datos Asegurado'!N10,"") ->  | F19: =IF('Datos Asegurado'!I10="Hij@",IF('Datos Asegurado'!J10="Masculino","Male","Female"),"") ->  | G19: 0 | I19: =IF('Datos Asegurado'!I10="Dependiente economico",'Datos Asegurado'!N10,"") ->  | J19: =IF('Datos Asegurado'!I10="Dependiente economico",IF('Datos Asegurado'!J10="Masculino","Male","Female"),"") ->  | K19: 0 | M19: NVFS1D0C5TC20Mexico Region 1 BNV34 | N19: NVFS1D0C5TC20 | O19: Mexico Region 1 BNV | P19: 34 | Q19: 15328
A20: =IF('Datos Asegurado'!I11="Conyuge",'Datos Asegurado'!N11,"") ->  | B20: =IF('Datos Asegurado'!I11="Conyuge",IF('Datos Asegurado'!J11="Masculino","Male","Female"),"") ->  | C20: 0 | E20: =IF('Datos Asegurado'!I11="Hij@",'Datos Asegurado'!N11,"") ->  | F20: =IF('Datos Asegurado'!I11="Hij@",IF('Datos Asegurado'!J11="Masculino","Male","Female"),"") ->  | G20: 0 | I20: =IF('Datos Asegurado'!I11="Dependiente economico",'Datos Asegurado'!N11,"") ->  | J20: =IF('Datos Asegurado'!I11="Dependiente economico",IF('Datos Asegurado'!J11="Masculino","Male","Female"),"") ->  | K20: 0 | M20: NVFS1D0C5TC20Mexico Region 1 BNV35 | N20: NVFS1D0C5TC20 | O20: Mexico Region 1 BNV | P20: 35 | Q20: 15784
A21: =IF('Datos Asegurado'!I12="Conyuge",'Datos Asegurado'!N12,"") ->  | B21: =IF('Datos Asegurado'!I12="Conyuge",IF('Datos Asegurado'!J12="Masculino","Male","Female"),"") ->  | C21: 0 | E21: =IF('Datos Asegurado'!I12="Hij@",'Datos Asegurado'!N12,"") ->  | F21: =IF('Datos Asegurado'!I12="Hij@",IF('Datos Asegurado'!J12="Masculino","Male","Female"),"") ->  | G21: 0 | I21: =IF('Datos Asegurado'!I12="Dependiente economico",'Datos Asegurado'!N12,"") ->  | J21: =IF('Datos Asegurado'!I12="Dependiente economico",IF('Datos Asegurado'!J12="Masculino","Male","Female"),"") ->  | K21: 0 | M21: NVFS1D0C5TC20Mexico Region 1 BNV36 | N21: NVFS1D0C5TC20 | O21: Mexico Region 1 BNV | P21: 36 | Q21: 16254
A22: =IF('Datos Asegurado'!I13="Conyuge",'Datos Asegurado'!N13,"") ->  | B22: =IF('Datos Asegurado'!I13="Conyuge",IF('Datos Asegurado'!J13="Masculino","Male","Female"),"") ->  | C22: 0 | E22: =IF('Datos Asegurado'!I13="Hij@",'Datos Asegurado'!N13,"") ->  | F22: =IF('Datos Asegurado'!I13="Hij@",IF('Datos Asegurado'!J13="Masculino","Male","Female"),"") ->  | G22: 0 | I22: =IF('Datos Asegurado'!I13="Dependiente economico",'Datos Asegurado'!N13,"") ->  | J22: =IF('Datos Asegurado'!I13="Dependiente economico",IF('Datos Asegurado'!J13="Masculino","Male","Female"),"") ->  | K22: 0 | M22: NVFS1D0C5TC20Mexico Region 1 BNV37 | N22: NVFS1D0C5TC20 | O22: Mexico Region 1 BNV | P22: 37 | Q22: 16739
A23: =IF('Datos Asegurado'!I14="Conyuge",'Datos Asegurado'!N14,"") ->  | B23: =IF('Datos Asegurado'!I14="Conyuge",IF('Datos Asegurado'!J14="Masculino","Male","Female"),"") ->  | C23: 0 | E23: =IF('Datos Asegurado'!I14="Hij@",'Datos Asegurado'!N14,"") ->  | F23: =IF('Datos Asegurado'!I14="Hij@",IF('Datos Asegurado'!J14="Masculino","Male","Female"),"") ->  | G23: 0 | I23: =IF('Datos Asegurado'!I14="Dependiente economico",'Datos Asegurado'!N14,"") ->  | J23: =IF('Datos Asegurado'!I14="Dependiente economico",IF('Datos Asegurado'!J14="Masculino","Male","Female"),"") ->  | K23: 0 | M23: NVFS1D0C5TC20Mexico Region 1 BNV38 | N23: NVFS1D0C5TC20 | O23: Mexico Region 1 BNV | P23: 38 | Q23: 17237
B24: Total tarifa base | C24: =SUM(C15:C23) -> 9619 | F24: Total tarifa base | G24: =SUM(G15:G23) -> 6075 | J24: Total tarifa base | K24: =SUM(K15:K23) -> 0 | M24: NVFS1D0C5TC20Mexico Region 1 BNV39 | N24: NVFS1D0C5TC20 | O24: Mexico Region 1 BNV | P24: 39 | Q24: 17411
M25: NVFS1D0C5TC20Mexico Region 1 BNV40 | N25: NVFS1D0C5TC20 | O25: Mexico Region 1 BNV | P25: 40 | Q25: 17458
M26: NVFS1D0C5TC20Mexico Region 1 BNV41 | N26: NVFS1D0C5TC20 | O26: Mexico Region 1 BNV | P26: 41 | Q26: 17604
M27: NVFS1D0C5TC20Mexico Region 1 BNV42 | N27: NVFS1D0C5TC20 | O27: Mexico Region 1 BNV | P27: 42 | Q27: 18116
M28: NVFS1D0C5TC20Mexico Region 1 BNV43 | N28: NVFS1D0C5TC20 | O28: Mexico Region 1 BNV | P28: 43 | Q28: 18835
M29: NVFS1D0C5TC20Mexico Region 1 BNV44 | N29: NVFS1D0C5TC20 | O29: Mexico Region 1 BNV | P29: 44 | Q29: 19584
M30: NVFS1D0C5TC20Mexico Region 1 BNV45 | N30: NVFS1D0C5TC20 | O30: Mexico Region 1 BNV | P30: 45 | Q30: 20363
M31: NVFS1D0C5TC20Mexico Region 1 BNV46 | N31: NVFS1D0C5TC20 | O31: Mexico Region 1 BNV | P31: 46 | Q31: 21174
M32: NVFS1D0C5TC20Mexico Region 1 BNV47 | N32: NVFS1D0C5TC20 | O32: Mexico Region 1 BNV | P32: 47 | Q32: 22016
M33: NVFS1D0C5TC20Mexico Region 1 BNV48 | N33: NVFS1D0C5TC20 | O33: Mexico Region 1 BNV | P33: 48 | Q33: 22893
M34: NVFS1D0C5TC20Mexico Region 1 BNV49 | N34: NVFS1D0C5TC20 | O34: Mexico Region 1 BNV | P34: 49 | Q34: 23804
M35: NVFS1D0C5TC20Mexico Region 1 BNV50 | N35: NVFS1D0C5TC20 | O35: Mexico Region 1 BNV | P35: 50 | Q35: 24751
M36: NVFS1D0C5TC20Mexico Region 1 BNV51 | N36: NVFS1D0C5TC20 | O36: Mexico Region 1 BNV | P36: 51 | Q36: 25860
M37: NVFS1D0C5TC20Mexico Region 1 BNV52 | N37: NVFS1D0C5TC20 | O37: Mexico Region 1 BNV | P37: 52 | Q37: 27147
M38: NVFS1D0C5TC20Mexico Region 1 BNV53 | N38: NVFS1D0C5TC20 | O38: Mexico Region 1 BNV | P38: 53 | Q38: 28895
M39: NVFS1D0C5TC20Mexico Region 1 BNV54 | N39: NVFS1D0C5TC20 | O39: Mexico Region 1 BNV | P39: 54 | Q39: 30916
M40: NVFS1D0C5TC20Mexico Region 1 BNV55 | N40: NVFS1D0C5TC20 | O40: Mexico Region 1 BNV | P40: 55 | Q40: 33081
M41: NVFS1D0C5TC20Mexico Region 1 BNV56 | N41: NVFS1D0C5TC20 | O41: Mexico Region 1 BNV | P41: 56 | Q41: 35396
M42: NVFS1D0C5TC20Mexico Region 1 BNV57 | N42: NVFS1D0C5TC20 | O42: Mexico Region 1 BNV | P42: 57 | Q42: 37874
M43: NVFS1D0C5TC20Mexico Region 1 BNV58 | N43: NVFS1D0C5TC20 | O43: Mexico Region 1 BNV | P43: 58 | Q43: 40525
M44: NVFS1D0C5TC20Mexico Region 1 BNV59 | N44: NVFS1D0C5TC20 | O44: Mexico Region 1 BNV | P44: 59 | Q44: 43361
M45: NVFS1D0C5TC20Mexico Region 1 BNV60 | N45: NVFS1D0C5TC20 | O45: Mexico Region 1 BNV | P45: 60 | Q45: 46398
M46: NVFS1D0C5TC20Mexico Region 1 BNV61 | N46: NVFS1D0C5TC20 | O46: Mexico Region 1 BNV | P46: 61 | Q46: 49646
M47: NVFS1D0C5TC20Mexico Region 1 BNV62 | N47: NVFS1D0C5TC20 | O47: Mexico Region 1 BNV | P47: 62 | Q47: 53121
M48: NVFS1D0C5TC20Mexico Region 1 BNV63 | N48: NVFS1D0C5TC20 | O48: Mexico Region 1 BNV | P48: 63 | Q48: 56839
M49: NVFS1D0C5TC20Mexico Region 1 BNV64 | N49: NVFS1D0C5TC20 | O49: Mexico Region 1 BNV | P49: 64 | Q49: 60818
M50: NVFS1D0C5TC20Mexico Region 1 BNV65 | N50: NVFS1D0C5TC20 | O50: Mexico Region 1 BNV | P50: 65 | Q50: 65075
M51: NVFS1D0C5TC20Mexico Region 1 BNV66 | N51: NVFS1D0C5TC20 | O51: Mexico Region 1 BNV | P51: 66 | Q51: 69630
M52: NVFS1D0C5TC20Mexico Region 1 BNV67 | N52: NVFS1D0C5TC20 | O52: Mexico Region 1 BNV | P52: 67 | Q52: 74504
M53: NVFS1D0C5TC20Mexico Region 1 BNV68 | N53: NVFS1D0C5TC20 | O53: Mexico Region 1 BNV | P53: 68 | Q53: 79719
M54: NVFS1D0C5TC20Mexico Region 1 BNV69 | N54: NVFS1D0C5TC20 | O54: Mexico Region 1 BNV | P54: 69 | Q54: 85300
M55: NVFS1D0C5TC20Mexico Region 1 BNV70 | N55: NVFS1D0C5TC20 | O55: Mexico Region 1 BNV | P55: 70 | Q55: 91698
M56: NVFS1D0C5TC20Mexico Region 1 BNV71 | N56: NVFS1D0C5TC20 | O56: Mexico Region 1 BNV | P56: 71 | Q56: 98575
M57: NVFS1D0C5TC20Mexico Region 1 BNV72 | N57: NVFS1D0C5TC20 | O57: Mexico Region 1 BNV | P57: 72 | Q57: 105968
M58: NVFS1D0C5TC20Mexico Region 1 BNV73 | N58: NVFS1D0C5TC20 | O58: Mexico Region 1 BNV | P58: 73 | Q58: 113916
M59: NVFS1D0C5TC20Mexico Region 1 BNV74 | N59: NVFS1D0C5TC20 | O59: Mexico Region 1 BNV | P59: 74 | Q59: 122460
M60: NVFS1D0C5TC20Mexico Region 1 BNV75 | N60: NVFS1D0C5TC20 | O60: Mexico Region 1 BNV | P60: 75 | Q60: 131644
M61: NVFS1D0C5TC20Mexico Region 1 BNV76 | N61: NVFS1D0C5TC20 | O61: Mexico Region 1 BNV | P61: 76 | Q61: 141518
M62: NVFS1D0C5TC20Mexico Region 1 BNV77 | N62: NVFS1D0C5TC20 | O62: Mexico Region 1 BNV | P62: 77 | Q62: 152130
M63: NVFS1D0C5TC20Mexico Region 1 BNV78 | N63: NVFS1D0C5TC20 | O63: Mexico Region 1 BNV | P63: 78 | Q63: 163540
M64: NVFS1D0C5TC20Mexico Region 1 BNV79 | N64: NVFS1D0C5TC20 | O64: Mexico Region 1 BNV | P64: 79 | Q64: 175805
M65: NVFS1D0C5TC20Mexico Region 1 BNV80 | N65: NVFS1D0C5TC20 | O65: Mexico Region 1 BNV | P65: 80 | Q65: 188991
M66: NVFS1D0C5TC20Mexico Region 1 BNV81 | N66: NVFS1D0C5TC20 | O66: Mexico Region 1 BNV | P66: 81 | Q66: 203165
M67: NVFS1D0C5TC20Mexico Region 1 BNV82 | N67: NVFS1D0C5TC20 | O67: Mexico Region 1 BNV | P67: 82 | Q67: 218404
M68: NVFS1D0C5TC20Mexico Region 1 BNV83 | N68: NVFS1D0C5TC20 | O68: Mexico Region 1 BNV | P68: 83 | Q68: 234784
M69: NVFS1D0C5TC20Mexico Region 1 BNV84 | N69: NVFS1D0C5TC20 | O69: Mexico Region 1 BNV | P69: 84 | Q69: 252393
M70: NVFS1D0C5TC30Mexico Region 1 BNV18 | N70: NVFS1D0C5TC30 | O70: Mexico Region 1 BNV | P70: 18 | Q70: 8725
M71: NVFS1D0C5TC30Mexico Region 1 BNV19 | N71: NVFS1D0C5TC30 | O71: Mexico Region 1 BNV | P71: 19 | Q71: 8982
M72: NVFS1D0C5TC30Mexico Region 1 BNV20 | N72: NVFS1D0C5TC30 | O72: Mexico Region 1 BNV | P72: 20 | Q72: 9249
M73: NVFS1D0C5TC30Mexico Region 1 BNV21 | N73: NVFS1D0C5TC30 | O73: Mexico Region 1 BNV | P73: 21 | Q73: 9523
M74: NVFS1D0C5TC30Mexico Region 1 BNV22 | N74: NVFS1D0C5TC30 | O74: Mexico Region 1 BNV | P74: 22 | Q74: 9805
M75: NVFS1D0C5TC30Mexico Region 1 BNV23 | N75: NVFS1D0C5TC30 | O75: Mexico Region 1 BNV | P75: 23 | Q75: 10096
M76: NVFS1D0C5TC30Mexico Region 1 BNV24 | N76: NVFS1D0C5TC30 | O76: Mexico Region 1 BNV | P76: 24 | Q76: 10396
M77: NVFS1D0C5TC30Mexico Region 1 BNV25 | N77: NVFS1D0C5TC30 | O77: Mexico Region 1 BNV | P77: 25 | Q77: 10704
M78: NVFS1D0C5TC30Mexico Region 1 BNV26 | N78: NVFS1D0C5TC30 | O78: Mexico Region 1 BNV | P78: 26 | Q78: 11023
M79: NVFS1D0C5TC30Mexico Region 1 BNV27 | N79: NVFS1D0C5TC30 | O79: Mexico Region 1 BNV | P79: 27 | Q79: 11349
M80: NVFS1D0C5TC30Mexico Region 1 BNV28 | N80: NVFS1D0C5TC30 | O80: Mexico Region 1 BNV | P80: 28 | Q80: 11686
M81: NVFS1D0C5TC30Mexico Region 1 BNV29 | N81: NVFS1D0C5TC30 | O81: Mexico Region 1 BNV | P81: 29 | Q81: 12033
M82: NVFS1D0C5TC30Mexico Region 1 BNV30 | N82: NVFS1D0C5TC30 | O82: Mexico Region 1 BNV | P82: 30 | Q82: 13581
M83: NVFS1D0C5TC30Mexico Region 1 BNV31 | N83: NVFS1D0C5TC30 | O83: Mexico Region 1 BNV | P83: 31 | Q83: 13984
M84: NVFS1D0C5TC30Mexico Region 1 BNV32 | N84: NVFS1D0C5TC30 | O84: Mexico Region 1 BNV | P84: 32 | Q84: 14400
M85: NVFS1D0C5TC30Mexico Region 1 BNV33 | N85: NVFS1D0C5TC30 | O85: Mexico Region 1 BNV | P85: 33 | Q85: 14830
M86: NVFS1D0C5TC30Mexico Region 1 BNV34 | N86: NVFS1D0C5TC30 | O86: Mexico Region 1 BNV | P86: 34 | Q86: 15270
M87: NVFS1D0C5TC30Mexico Region 1 BNV35 | N87: NVFS1D0C5TC30 | O87: Mexico Region 1 BNV | P87: 35 | Q87: 15725
M88: NVFS1D0C5TC30Mexico Region 1 BNV36 | N88: NVFS1D0C5TC30 | O88: Mexico Region 1 BNV | P88: 36 | Q88: 16193
M89: NVFS1D0C5TC30Mexico Region 1 BNV37 | N89: NVFS1D0C5TC30 | O89: Mexico Region 1 BNV | P89: 37 | Q89: 16675
M90: NVFS1D0C5TC30Mexico Region 1 BNV38 | N90: NVFS1D0C5TC30 | O90: Mexico Region 1 BNV | P90: 38 | Q90: 17174
M91: NVFS1D0C5TC30Mexico Region 1 BNV39 | N91: NVFS1D0C5TC30 | O91: Mexico Region 1 BNV | P91: 39 | Q91: 17347
M92: NVFS1D0C5TC30Mexico Region 1 BNV40 | N92: NVFS1D0C5TC30 | O92: Mexico Region 1 BNV | P92: 40 | Q92: 17393
M93: NVFS1D0C5TC30Mexico Region 1 BNV41 | N93: NVFS1D0C5TC30 | O93: Mexico Region 1 BNV | P93: 41 | Q93: 17539
M94: NVFS1D0C5TC30Mexico Region 1 BNV42 | N94: NVFS1D0C5TC30 | O94: Mexico Region 1 BNV | P94: 42 | Q94: 18049
M95: NVFS1D0C5TC30Mexico Region 1 BNV43 | N95: NVFS1D0C5TC30 | O95: Mexico Region 1 BNV | P95: 43 | Q95: 18767
M96: NVFS1D0C5TC30Mexico Region 1 BNV44 | N96: NVFS1D0C5TC30 | O96: Mexico Region 1 BNV | P96: 44 | Q96: 19512
M97: NVFS1D0C5TC30Mexico Region 1 BNV45 | N97: NVFS1D0C5TC30 | O97: Mexico Region 1 BNV | P97: 45 | Q97: 20288
M98: NVFS1D0C5TC30Mexico Region 1 BNV46 | N98: NVFS1D0C5TC30 | O98: Mexico Region 1 BNV | P98: 46 | Q98: 21095
M99: NVFS1D0C5TC30Mexico Region 1 BNV47 | N99: NVFS1D0C5TC30 | O99: Mexico Region 1 BNV | P99: 47 | Q99: 21935
M100: NVFS1D0C5TC30Mexico Region 1 BNV48 | N100: NVFS1D0C5TC30 | O100: Mexico Region 1 BNV | P100: 48 | Q100: 22807
M101: NVFS1D0C5TC30Mexico Region 1 BNV49 | N101: NVFS1D0C5TC30 | O101: Mexico Region 1 BNV | P101: 49 | Q101: 23716
M102: NVFS1D0C5TC30Mexico Region 1 BNV50 | N102: NVFS1D0C5TC30 | O102: Mexico Region 1 BNV | P102: 50 | Q102: 24660
M103: NVFS1D0C5TC30Mexico Region 1 BNV51 | N103: NVFS1D0C5TC30 | O103: Mexico Region 1 BNV | P103: 51 | Q103: 25765
M104: NVFS1D0C5TC30Mexico Region 1 BNV52 | N104: NVFS1D0C5TC30 | O104: Mexico Region 1 BNV | P104: 52 | Q104: 27047
M105: NVFS1D0C5TC30Mexico Region 1 BNV53 | N105: NVFS1D0C5TC30 | O105: Mexico Region 1 BNV | P105: 53 | Q105: 28788
M106: NVFS1D0C5TC30Mexico Region 1 BNV54 | N106: NVFS1D0C5TC30 | O106: Mexico Region 1 BNV | P106: 54 | Q106: 30802
M107: NVFS1D0C5TC30Mexico Region 1 BNV55 | N107: NVFS1D0C5TC30 | O107: Mexico Region 1 BNV | P107: 55 | Q107: 32958
M108: NVFS1D0C5TC30Mexico Region 1 BNV56 | N108: NVFS1D0C5TC30 | O108: Mexico Region 1 BNV | P108: 56 | Q108: 35265
M109: NVFS1D0C5TC30Mexico Region 1 BNV57 | N109: NVFS1D0C5TC30 | O109: Mexico Region 1 BNV | P109: 57 | Q109: 37733
M110: NVFS1D0C5TC30Mexico Region 1 BNV58 | N110: NVFS1D0C5TC30 | O110: Mexico Region 1 BNV | P110: 58 | Q110: 40375
M111: NVFS1D0C5TC30Mexico Region 1 BNV59 | N111: NVFS1D0C5TC30 | O111: Mexico Region 1 BNV | P111: 59 | Q111: 43202
M112: NVFS1D0C5TC30Mexico Region 1 BNV60 | N112: NVFS1D0C5TC30 | O112: Mexico Region 1 BNV | P112: 60 | Q112: 46226
M113: NVFS1D0C5TC30Mexico Region 1 BNV61 | N113: NVFS1D0C5TC30 | O113: Mexico Region 1 BNV | P113: 61 | Q113: 49461
M114: NVFS1D0C5TC30Mexico Region 1 BNV62 | N114: NVFS1D0C5TC30 | O114: Mexico Region 1 BNV | P114: 62 | Q114: 52925
M115: NVFS1D0C5TC30Mexico Region 1 BNV63 | N115: NVFS1D0C5TC30 | O115: Mexico Region 1 BNV | P115: 63 | Q115: 56628
M116: NVFS1D0C5TC30Mexico Region 1 BNV64 | N116: NVFS1D0C5TC30 | O116: Mexico Region 1 BNV | P116: 64 | Q116: 60593
M117: NVFS1D0C5TC30Mexico Region 1 BNV65 | N117: NVFS1D0C5TC30 | O117: Mexico Region 1 BNV | P117: 65 | Q117: 64835
M118: NVFS1D0C5TC30Mexico Region 1 BNV66 | N118: NVFS1D0C5TC30 | O118: Mexico Region 1 BNV | P118: 66 | Q118: 69372
M119: NVFS1D0C5TC30Mexico Region 1 BNV67 | N119: NVFS1D0C5TC30 | O119: Mexico Region 1 BNV | P119: 67 | Q119: 74228
M120: NVFS1D0C5TC30Mexico Region 1 BNV68 | N120: NVFS1D0C5TC30 | O120: Mexico Region 1 BNV | P120: 68 | Q120: 79425
M121: NVFS1D0C5TC30Mexico Region 1 BNV69 | N121: NVFS1D0C5TC30 | O121: Mexico Region 1 BNV | P121: 69 | Q121: 84984
M122: NVFS1D0C5TC30Mexico Region 1 BNV70 | N122: NVFS1D0C5TC30 | O122: Mexico Region 1 BNV | P122: 70 | Q122: 91358
M123: NVFS1D0C5TC30Mexico Region 1 BNV71 | N123: NVFS1D0C5TC30 | O123: Mexico Region 1 BNV | P123: 71 | Q123: 98211
M124: NVFS1D0C5TC30Mexico Region 1 BNV72 | N124: NVFS1D0C5TC30 | O124: Mexico Region 1 BNV | P124: 72 | Q124: 105575
M125: NVFS1D0C5TC30Mexico Region 1 BNV73 | N125: NVFS1D0C5TC30 | O125: Mexico Region 1 BNV | P125: 73 | Q125: 113495
M126: NVFS1D0C5TC30Mexico Region 1 BNV74 | N126: NVFS1D0C5TC30 | O126: Mexico Region 1 BNV | P126: 74 | Q126: 122007
M127: NVFS1D0C5TC30Mexico Region 1 BNV75 | N127: NVFS1D0C5TC30 | O127: Mexico Region 1 BNV | P127: 75 | Q127: 131156
M128: NVFS1D0C5TC30Mexico Region 1 BNV76 | N128: NVFS1D0C5TC30 | O128: Mexico Region 1 BNV | P128: 76 | Q128: 140993
M129: NVFS1D0C5TC30Mexico Region 1 BNV77 | N129: NVFS1D0C5TC30 | O129: Mexico Region 1 BNV | P129: 77 | Q129: 151568
M130: NVFS1D0C5TC30Mexico Region 1 BNV78 | N130: NVFS1D0C5TC30 | O130: Mexico Region 1 BNV | P130: 78 | Q130: 162935
M131: NVFS1D0C5TC30Mexico Region 1 BNV79 | N131: NVFS1D0C5TC30 | O131: Mexico Region 1 BNV | P131: 79 | Q131: 175156
M132: NVFS1D0C5TC30Mexico Region 1 BNV80 | N132: NVFS1D0C5TC30 | O132: Mexico Region 1 BNV | P132: 80 | Q132: 188293
M133: NVFS1D0C5TC30Mexico Region 1 BNV81 | N133: NVFS1D0C5TC30 | O133: Mexico Region 1 BNV | P133: 81 | Q133: 202414
M134: NVFS1D0C5TC30Mexico Region 1 BNV82 | N134: NVFS1D0C5TC30 | O134: Mexico Region 1 BNV | P134: 82 | Q134: 217596
M135: NVFS1D0C5TC30Mexico Region 1 BNV83 | N135: NVFS1D0C5TC30 | O135: Mexico Region 1 BNV | P135: 83 | Q135: 233916
M136: NVFS1D0C5TC30Mexico Region 1 BNV84 | N136: NVFS1D0C5TC30 | O136: Mexico Region 1 BNV | P136: 84 | Q136: 251460
M137: NVFS1D0C5TC40Mexico Region 1 BNV18 | N137: NVFS1D0C5TC40 | O137: Mexico Region 1 BNV | P137: 18 | Q137: 8702
M138: NVFS1D0C5TC40Mexico Region 1 BNV19 | N138: NVFS1D0C5TC40 | O138: Mexico Region 1 BNV | P138: 19 | Q138: 8958
M139: NVFS1D0C5TC40Mexico Region 1 BNV20 | N139: NVFS1D0C5TC40 | O139: Mexico Region 1 BNV | P139: 20 | Q139: 9225
M140: NVFS1D0C5TC40Mexico Region 1 BNV21 | N140: NVFS1D0C5TC40 | O140: Mexico Region 1 BNV | P140: 21 | Q140: 9498
M141: NVFS1D0C5TC40Mexico Region 1 BNV22 | N141: NVFS1D0C5TC40 | O141: Mexico Region 1 BNV | P141: 22 | Q141: 9779
M142: NVFS1D0C5TC40Mexico Region 1 BNV23 | N142: NVFS1D0C5TC40 | O142: Mexico Region 1 BNV | P142: 23 | Q142: 10068
M143: NVFS1D0C5TC40Mexico Region 1 BNV24 | N143: NVFS1D0C5TC40 | O143: Mexico Region 1 BNV | P143: 24 | Q143: 10368
M144: NVFS1D0C5TC40Mexico Region 1 BNV25 | N144: NVFS1D0C5TC40 | O144: Mexico Region 1 BNV | P144: 25 | Q144: 10675
M145: NVFS1D0C5TC40Mexico Region 1 BNV26 | N145: NVFS1D0C5TC40 | O145: Mexico Region 1 BNV | P145: 26 | Q145: 10993
M146: NVFS1D0C5TC40Mexico Region 1 BNV27 | N146: NVFS1D0C5TC40 | O146: Mexico Region 1 BNV | P146: 27 | Q146: 11319
M147: NVFS1D0C5TC40Mexico Region 1 BNV28 | N147: NVFS1D0C5TC40 | O147: Mexico Region 1 BNV | P147: 28 | Q147: 11656
M148: NVFS1D0C5TC40Mexico Region 1 BNV29 | N148: NVFS1D0C5TC40 | O148: Mexico Region 1 BNV | P148: 29 | Q148: 12002
M149: NVFS1D0C5TC40Mexico Region 1 BNV30 | N149: NVFS1D0C5TC40 | O149: Mexico Region 1 BNV | P149: 30 | Q149: 13544
M150: NVFS1D0C5TC40Mexico Region 1 BNV31 | N150: NVFS1D0C5TC40 | O150: Mexico Region 1 BNV | P150: 31 | Q150: 13947
M151: NVFS1D0C5TC40Mexico Region 1 BNV32 | N151: NVFS1D0C5TC40 | O151: Mexico Region 1 BNV | P151: 32 | Q151: 14361
M152: NVFS1D0C5TC40Mexico Region 1 BNV33 | N152: NVFS1D0C5TC40 | O152: Mexico Region 1 BNV | P152: 33 | Q152: 14789
M153: NVFS1D0C5TC40Mexico Region 1 BNV34 | N153: NVFS1D0C5TC40 | O153: Mexico Region 1 BNV | P153: 34 | Q153: 15230
M154: NVFS1D0C5TC40Mexico Region 1 BNV35 | N154: NVFS1D0C5TC40 | O154: Mexico Region 1 BNV | P154: 35 | Q154: 15682
M155: NVFS1D0C5TC40Mexico Region 1 BNV36 | N155: NVFS1D0C5TC40 | O155: Mexico Region 1 BNV | P155: 36 | Q155: 16151
M156: NVFS1D0C5TC40Mexico Region 1 BNV37 | N156: NVFS1D0C5TC40 | O156: Mexico Region 1 BNV | P156: 37 | Q156: 16632
M157: NVFS1D0C5TC40Mexico Region 1 BNV38 | N157: NVFS1D0C5TC40 | O157: Mexico Region 1 BNV | P157: 38 | Q157: 17128
M158: NVFS1D0C5TC40Mexico Region 1 BNV39 | N158: NVFS1D0C5TC40 | O158: Mexico Region 1 BNV | P158: 39 | Q158: 17300
M159: NVFS1D0C5TC40Mexico Region 1 BNV40 | N159: NVFS1D0C5TC40 | O159: Mexico Region 1 BNV | P159: 40 | Q159: 17346
M160: NVFS1D0C5TC40Mexico Region 1 BNV41 | N160: NVFS1D0C5TC40 | O160: Mexico Region 1 BNV | P160: 41 | Q160: 17491
M161: NVFS1D0C5TC40Mexico Region 1 BNV42 | N161: NVFS1D0C5TC40 | O161: Mexico Region 1 BNV | P161: 42 | Q161: 18000
M162: NVFS1D0C5TC40Mexico Region 1 BNV43 | N162: NVFS1D0C5TC40 | O162: Mexico Region 1 BNV | P162: 43 | Q162: 18716
M163: NVFS1D0C5TC40Mexico Region 1 BNV44 | N163: NVFS1D0C5TC40 | O163: Mexico Region 1 BNV | P163: 44 | Q163: 19460
M164: NVFS1D0C5TC40Mexico Region 1 BNV45 | N164: NVFS1D0C5TC40 | O164: Mexico Region 1 BNV | P164: 45 | Q164: 20233
M165: NVFS1D0C5TC40Mexico Region 1 BNV46 | N165: NVFS1D0C5TC40 | O165: Mexico Region 1 BNV | P165: 46 | Q165: 21039
M166: NVFS1D0C5TC40Mexico Region 1 BNV47 | N166: NVFS1D0C5TC40 | O166: Mexico Region 1 BNV | P166: 47 | Q166: 21875
M167: NVFS1D0C5TC40Mexico Region 1 BNV48 | N167: NVFS1D0C5TC40 | O167: Mexico Region 1 BNV | P167: 48 | Q167: 22747
M168: NVFS1D0C5TC40Mexico Region 1 BNV49 | N168: NVFS1D0C5TC40 | O168: Mexico Region 1 BNV | P168: 49 | Q168: 23653
M169: NVFS1D0C5TC40Mexico Region 1 BNV50 | N169: NVFS1D0C5TC40 | O169: Mexico Region 1 BNV | P169: 50 | Q169: 24593
M170: NVFS1D0C5TC40Mexico Region 1 BNV51 | N170: NVFS1D0C5TC40 | O170: Mexico Region 1 BNV | P170: 51 | Q170: 25695
M171: NVFS1D0C5TC40Mexico Region 1 BNV52 | N171: NVFS1D0C5TC40 | O171: Mexico Region 1 BNV | P171: 52 | Q171: 26975
M172: NVFS1D0C5TC40Mexico Region 1 BNV53 | N172: NVFS1D0C5TC40 | O172: Mexico Region 1 BNV | P172: 53 | Q172: 28711
M173: NVFS1D0C5TC40Mexico Region 1 BNV54 | N173: NVFS1D0C5TC40 | O173: Mexico Region 1 BNV | P173: 54 | Q173: 30719
M174: NVFS1D0C5TC40Mexico Region 1 BNV55 | N174: NVFS1D0C5TC40 | O174: Mexico Region 1 BNV | P174: 55 | Q174: 32870
M175: NVFS1D0C5TC40Mexico Region 1 BNV56 | N175: NVFS1D0C5TC40 | O175: Mexico Region 1 BNV | P175: 56 | Q175: 35172
M176: NVFS1D0C5TC40Mexico Region 1 BNV57 | N176: NVFS1D0C5TC40 | O176: Mexico Region 1 BNV | P176: 57 | Q176: 37633
M177: NVFS1D0C5TC40Mexico Region 1 BNV58 | N177: NVFS1D0C5TC40 | O177: Mexico Region 1 BNV | P177: 58 | Q177: 40267
M178: NVFS1D0C5TC40Mexico Region 1 BNV59 | N178: NVFS1D0C5TC40 | O178: Mexico Region 1 BNV | P178: 59 | Q178: 43086
M179: NVFS1D0C5TC40Mexico Region 1 BNV60 | N179: NVFS1D0C5TC40 | O179: Mexico Region 1 BNV | P179: 60 | Q179: 46102
M180: NVFS1D0C5TC40Mexico Region 1 BNV61 | N180: NVFS1D0C5TC40 | O180: Mexico Region 1 BNV | P180: 61 | Q180: 49330
M181: NVFS1D0C5TC40Mexico Region 1 BNV62 | N181: NVFS1D0C5TC40 | O181: Mexico Region 1 BNV | P181: 62 | Q181: 52782
M182: NVFS1D0C5TC40Mexico Region 1 BNV63 | N182: NVFS1D0C5TC40 | O182: Mexico Region 1 BNV | P182: 63 | Q182: 56477
M183: NVFS1D0C5TC40Mexico Region 1 BNV64 | N183: NVFS1D0C5TC40 | O183: Mexico Region 1 BNV | P183: 64 | Q183: 60430
M184: NVFS1D0C5TC40Mexico Region 1 BNV65 | N184: NVFS1D0C5TC40 | O184: Mexico Region 1 BNV | P184: 65 | Q184: 64661
M185: NVFS1D0C5TC40Mexico Region 1 BNV66 | N185: NVFS1D0C5TC40 | O185: Mexico Region 1 BNV | P185: 66 | Q185: 69188
M186: NVFS1D0C5TC40Mexico Region 1 BNV67 | N186: NVFS1D0C5TC40 | O186: Mexico Region 1 BNV | P186: 67 | Q186: 74030
M187: NVFS1D0C5TC40Mexico Region 1 BNV68 | N187: NVFS1D0C5TC40 | O187: Mexico Region 1 BNV | P187: 68 | Q187: 79212
M188: NVFS1D0C5TC40Mexico Region 1 BNV69 | N188: NVFS1D0C5TC40 | O188: Mexico Region 1 BNV | P188: 69 | Q188: 84756
M189: NVFS1D0C5TC40Mexico Region 1 BNV70 | N189: NVFS1D0C5TC40 | O189: Mexico Region 1 BNV | P189: 70 | Q189: 91114
M190: NVFS1D0C5TC40Mexico Region 1 BNV71 | N190: NVFS1D0C5TC40 | O190: Mexico Region 1 BNV | P190: 71 | Q190: 97947
M191: NVFS1D0C5TC40Mexico Region 1 BNV72 | N191: NVFS1D0C5TC40 | O191: Mexico Region 1 BNV | P191: 72 | Q191: 105293
M192: NVFS1D0C5TC40Mexico Region 1 BNV73 | N192: NVFS1D0C5TC40 | O192: Mexico Region 1 BNV | P192: 73 | Q192: 113189
M193: NVFS1D0C5TC40Mexico Region 1 BNV74 | N193: NVFS1D0C5TC40 | O193: Mexico Region 1 BNV | P193: 74 | Q193: 121679
M194: NVFS1D0C5TC40Mexico Region 1 BNV75 | N194: NVFS1D0C5TC40 | O194: Mexico Region 1 BNV | P194: 75 | Q194: 130805
M195: NVFS1D0C5TC40Mexico Region 1 BNV76 | N195: NVFS1D0C5TC40 | O195: Mexico Region 1 BNV | P195: 76 | Q195: 140616
M196: NVFS1D0C5TC40Mexico Region 1 BNV77 | N196: NVFS1D0C5TC40 | O196: Mexico Region 1 BNV | P196: 77 | Q196: 151161
M197: NVFS1D0C5TC40Mexico Region 1 BNV78 | N197: NVFS1D0C5TC40 | O197: Mexico Region 1 BNV | P197: 78 | Q197: 162500
M198: NVFS1D0C5TC40Mexico Region 1 BNV79 | N198: NVFS1D0C5TC40 | O198: Mexico Region 1 BNV | P198: 79 | Q198: 174686
M199: NVFS1D0C5TC40Mexico Region 1 BNV80 | N199: NVFS1D0C5TC40 | O199: Mexico Region 1 BNV | P199: 80 | Q199: 187788
M200: NVFS1D0C5TC40Mexico Region 1 BNV81 | N200: NVFS1D0C5TC40 | O200: Mexico Region 1 BNV | P200: 81 | Q200: 201872
... 4300 more rows
